{"text_format":"1","workbook":"xlsx","n_sheets":1,"sheets":["ADA CONSTRUCTION AUG 2025 CAA"],"not_rendered":{"charts":0,"images":0,"macros":1,"external_links":1,"defined_names":0,"comments":1,"pivot_tables":0},"unopened":[],"bounds":{"document_bytes":16777216,"sheet_cells":100000,"rows_first":2000,"rows_last":500,"rows_between":2000,"halvings":0,"cell_chars":16384,"cell_head_chars":4096},"cells_cut":0,"cells_raw":0,"read":"whole","date_system":"1900"}

{"sheet":"ADA CONSTRUCTION AUG 2025 CAA","index":0,"n_rows":344,"n_cols":10,"rows_kept":344,"cut":false,"hidden":false,"merged":[]}
["DEPARTMENT OF TRANSPORTATION - CALTRANS"]
["DBE Commitment at Award (CAA) on Federally Funded Major Construction Contracts - October 1, 2024 - August 31, 2025"]
[]
["Total Award Amount Year-to-Date (YTD)",null,"Total DBE Commitment Amount YTD",null,null,"Total Prime Contracts Awarded YTD"]
[2263070799.52,null,{"$f":"SUM(C7:C18)","v":517203231.82000005},null,null,{"$f":"SUM(C319:C341,I319:I341,F319:F341)","v":131}]
["Groups",null,"Commitment Dollars YTD","Firms YTD","Contracts YTD","% of Contracts","% of DBE $","% of Total $"]
["Hispanic American Male",null,172114468.73999998,{"$f":"COUNTIF(D30:D141,\"M\")","v":82},{"$f":"SUMIF(D30:D141,\"M\",E30:E141)","v":321},{"$f":"E7/E20","v":0.3213213213213213},{"$f":"C7/C5","v":0.33277918263260237},{"$f":"C7/A5","v":7.6053506048730624E-2}]
["Hispanic American Female",null,{"$f":"SUMIF(D30:D141,\"F\", C30:C141)","v":60014656.079999991},{"$f":"COUNTIF(D30:D141,\"F\")","v":27},{"$f":"SUMIF(D30:D141,\"F\",E30:E141)","v":128},{"$f":"E8/E20","v":0.12812812812812813},{"$f":"C8/C5","v":0.11603689301942843},{"$f":"C8/A5","v":2.6519124409509931E-2}]
["African American Male",null,{"$f":"SUMIF(D160:D179,\"m\", C160:C179)","v":14071205.1},{"$f":"COUNTIF(D160:D179,\"M\")","v":15},{"$f":"SUMIF(D160:D179,\"M\",E160:E179)","v":37},{"$f":"E9/E20","v":3.7037037037037035E-2},{"$f":"C9/C5","v":2.7206336376678207E-2},{"$f":"C9/A5","v":6.2177485136499129E-3}]
["African American Female",null,{"$f":"SUMIF(D160:D179,\"F\", C160:C179)","v":7712982.2399999993},{"$f":"COUNTIF(D160:D179,\"F\")","v":4},{"$f":"SUMIF(D160:D179,\"F\",E160:E179)","v":14},{"$f":"E10/E20","v":1.4014014014014014E-2},{"$f":"C10/C5","v":1.4912865514893601E-2},{"$f":"C10/A5","v":3.4081930806742467E-3}]
["Asian Pacific Male",null,{"$f":"SUMIF(D205:D227,\"m\", C205:C227)","v":22540605.559999999},{"$f":"COUNTIF(D205:D227,\"M\")","v":14},{"$f":"SUMIF(D205:D227,\"M\",E205:E227)","v":55},{"$f":"E11/E20","v":5.5055055055055056E-2},{"$f":"C11/C5","v":4.3581718313478568E-2},{"$f":"C11/A5","v":9.9601857638660207E-3}]
["Asian Pacific Female",null,{"$f":"SUMIF(D205:D227,\"F\", C205:C227)","v":21316784.659999996},{"$f":"COUNTIF(D205:D227,\"F\")","v":7},{"$f":"SUMIF(D205:D227,\"F\",E205:E227)","v":47},{"$f":"E12/E20","v":4.7047047047047048E-2},{"$f":"C12/C5","v":4.1215490059850944E-2},{"$f":"C12/A5","v":9.4194068804746688E-3}]
["Subcontinent Asian Male",null,{"$f":"SUMIF(D182:D202,\"m\", C182:C202)","v":24375272.050000001},{"$f":"COUNTIF(D182:D202,\"M\")","v":16},{"$f":"SUMIF(D182:D202,\"M\",E182:E202)","v":54},{"$f":"E13/E20","v":5.4054054054054057E-2},{"$f":"C13/C5","v":4.7129001812740448E-2},{"$f":"C13/A5","v":1.0770883551310027E-2}]
["Subcontinent Asian Female",null,{"$f":"SUMIF(D182:D202,\"F\", C182:C202)","v":0},{"$f":"COUNTIF(D182:D202,\"F\")","v":0},{"$f":"SUMIF(D182:D202,\"F\",E182:E202)","v":0},{"$f":"E14/E20","v":0},{"$f":"C14/C5","v":0},{"$f":"C14/A5","v":0}]
["Native American Male",null,{"$f":"SUMIF(D144:D157,\"m\", C144:C157)","v":15288352.689999999},{"$f":"COUNTIF(D144:D157,\"M\")","v":7},{"$f":"SUMIF(D144:D157,\"M\",E144:E157)","v":28},{"$f":"E15/E20","v":2.8028028028028028E-2},{"$f":"C15/C5","v":2.9559661946042783E-2},{"$f":"C15/A5","v":6.7555786116999424E-3}]
["Native American Female",null,{"$f":"SUMIF(D144:D157,\"F\", C144:C157)","v":7876625.1500000004},{"$f":"COUNTIF(D144:D157,\"F\")","v":5},{"$f":"SUMIF(D144:D157,\"F\",E144:E157)","v":9},{"$f":"E16/E20","v":9.0090090090090089E-3},{"$f":"C16/C5","v":1.5229265142606974E-2},{"$f":"C16/A5","v":3.4805031957774553E-3}]
["Non Minority Women",null,{"$f":"SUMIF(D234:D314,\"F\", C234:C314)","v":171834199.55000007},{"$f":"COUNTIF(D234:D314,\"F\")","v":77},{"$f":"SUMIF(D234:D314,\"F\",E234:E314)","v":305},{"$f":"E17/E20","v":0.30530530530530531},{"$f":"C17/C5","v":0.33223728889962306},{"$f":"C17/A5","v":7.5929661408050644E-2}]
["Other Men",null,{"$f":"SUMIF(D230:D231,\"m\", C230:C231)","v":58080},{"$f":"COUNTIF(D230:D231,\"M\")","v":1},{"$f":"SUMIF(D230:D231,\"M\",E230:E231)","v":1},{"$f":"E18/E20","v":1.001001001001001E-3},{"$f":"C18/C5","v":1.1229628205458184E-4},{"$f":"C18/A5","v":2.5664243474980473E-5}]
[null,null,null,null,null,{"$f":"E19/E20","v":0},{"$f":"C19/C5","v":0},{"$f":"C19/A5","v":0}]
["Total  ",null,{"$f":"SUM(C7:C18)","v":517203231.82000005},{"$f":"SUM(D7:D19)","v":255},{"$f":"SUM(E7:E19)","v":999}]
["Total Primes Contracts",null,{"$f":"SUM(C319:C341,I319:I341,F319:F341)","v":131}]
[]
["Yellow = DBEs",null,"Green = Trucking",{"$f":"COUNTIF(B30:B314,43)","v":48},{"$f":"SUMIF(B29:B314,\"43\",C29:C314)","v":64254556.850000009},{"$f":"E23/C5","v":0.12423463910674525}]
["Red = Prime Contractor",null,"Blue = Supplier",{"$f":"COUNTIF(B30:B314,33)","v":46},{"$f":"SUMIF(B29:B314,\"33\",C29:C314)","v":152525031.39000002},{"$f":"E24/C5","v":0.29490347702058178}]
["Red Italic = DBE firm as Prime",null,"White = Other",{"$f":"COUNTIF(B30:B314,-4142)","v":161},{"$f":"C5-(E23+E24)","v":300423643.58000004},{"$f":"E25/C5","v":0.58086188387267301}]
["BOLD = women"]
["* = Used both as Trucking & Supplier"]
[]
["Hispanic American","Column1","Dollars","M/F","# of Contracts","Contract #","# of Primes","Prime Name","Districts"]
["3P LANDSCAPING",-4142,{"$f":"'[1]Construction Worksheet'!G7","v":13500},"M",1,{"$f":"FETCHCOMMENT(E30)","v":"07-355204"},1,{"$f":"FETCHCOMMENT(G30)","v":"GRANITE CONSTRUCTION COMPANY"},7]
["1 PASS SWEEPING, INC.",43,{"$f":"'[1]Construction Worksheet'!G14","v":331500},"M",3,{"$f":"FETCHCOMMENT(E31)","v":"12-0K91U4\n07-348204\n12-0R3114"},3,{"$f":"FETCHCOMMENT(G31)","v":"GRANITE CONSTRUCTION COMPANY\nBOSCO CONSTRUCTORS, INC.\nBEADOR CONSTRUCTION COMPANY, INC."},"7,12"]
["A STAR SWEEPING",-4142,{"$f":"'[1]Construction Worksheet'!G20","v":17200},"M",1,{"$f":"FETCHCOMMENT(E32)","v":"04-0Q2004"},1,{"$f":"FETCHCOMMENT(G32)","v":"GHILOTTI BROS., INC."},4]
["A&M CONSULTING ENGINEERS",-4142,{"$f":"'[1]Construction Worksheet'!G37","v":226800},"M",12,{"$f":"FETCHCOMMENT(E33)","v":"08-1J6104\n04-0K6404\n04-2K7404\n03-3H8304\n04-2Q8004\n05-1H6504\n04-0K8004\n05-1J8604\n07-347904\n07-351704\n12-0R3114\n10-1H7004"},12,{"$f":"FETCHCOMMENT(G33)","v":"FBD VANGUARD CONSTRUCTION, INC.\nO.C. JONES & SONS INC\nBAY CITIES PAVING & GRADING\nPACIFIC INFRASTRUCTURE CONSTRUCTION, LLC\nGORDON N. BALL, INC.\nGRANITE CONSTRUCTION COMPANY\nGHILOTTI BROS INC\nPAPICH CONSTRUCTION COMPANY\nRASMUSSEN/VANGUARD\nC. A. RASMUSSEN, INC.\nBEADOR CONSTRUCTION COMPANY, INC.\nGEORGE REED, INC."},"3,4,5,7,8,10,12"]
["ABSL CONSTRUCTION",-4142,{"$f":"'[1]Construction Worksheet'!G72","v":3860936.4699999997},"M",27,{"$f":"FETCHCOMMENT(E34)","v":"03-4H8704\n05-1J7804\n02-3H6904\n04-2Q6104\n07-333604\n10-0Q2104\n01-0F7104\n04-0P9204\n04-2K7404\n04-3J2604\n05-1H6504\n06-487404\n10-1L2804\n04-0K8004\n04-2Q5504\n07-346804\n09-374704\n10-1L8704\n06-0Y1704\n07-347904\n05-1N3404\n01-0K8904\n04-2K3604\n10-1H7004\n04-0AA624\n04-0Q1304\n04-2Q5204"},15,{"$f":"FETCHCOMMENT(G34)","v":"O.C. JONES & SONS INC\nCALPORTLAND CONSTRUCTION\nDIG IT CONSTRUCTION, INC.\nGRANITE ROCK COMPANY\nSULLY-MILLER CONTRACTING COMPANY\nBAY CITIES PAVING & GRADING, INC.\nGHILOTTI CONSTRUCTION COMPANY INC\nMYERS & SONS CONSTRUCGTION LLC\nGHILOTTI BROS INC\nTORO ENTERPRISES INC\nPAPICH CONSTRUCTION COMPANY\nRASMUSSEN/VANGUARD\nSOUZA ENGINEERING CONTRACTING, INC. DBA SOUZA CONSTRUCTION\nGRANITE CONSTRUCTION COMPANY\nGEORGE REED, INC."},"1,2,3,4,5,6,7,9,10"]
["ADVANTAGE DEMOLITION & GRADING, INC.",-4142,{"$f":"'[1]Construction Worksheet'!G77","v":450000},"M",1,{"$f":"FETCHCOMMENT(E35)","v":"06-487404"},1,{"$f":"FETCHCOMMENT(G35)","v":"GRANITE CONSTRUCTION COMPANY"},6]
["ALCORN FENCE COMPANY",-4142,{"$f":"'[1]Construction Worksheet'!G88","v":3181096.1500000004},"M",6,{"$f":"FETCHCOMMENT(E36)","v":"08-1J6104\n12-0R32U4\n05-1J8604\n07-348204\n07-346304\n07-355204"},6,{"$f":"FETCHCOMMENT(G36)","v":"FBD VANGUARD CONSTRUCTION, INC.\nR.J. NOBLE COMPANY\nPAPICH CONSTRUCTION COMPANY, INC.\nBOSCO CONSTRUCTORS, INC.\nCHUMO CONSTRUCTION, INC.\nGRANITE CONSTRUCTION COMPANY"},"5,7,8,12"]
["ALEXIS TRUCKING",-4142,{"$f":"'[1]Construction Worksheet'!C8","v":116160},"F",1,{"$f":"FETCHCOMMENT(E37)","v":"08-1M0404"},1,{"$f":"FETCHCOMMENT(G37)","v":"INTERSTATE CIVIL CONSTRUCTION"},8]
["ARIBISO TRANSPORTATION INC",43,{"$f":"'[1]Construction Worksheet'!G102","v":742000},"M",1,{"$f":"FETCHCOMMENT(E38)","v":"02-0J8504"},1,{"$f":"FETCHCOMMENT(G38)","v":"TULLIS INC"},2]
["ATHENA TRUCKING",43,{"$f":"'[1]Construction Worksheet'!G94","v":200000},"M",1,{"$f":"FETCHCOMMENT(E39)","v":"12-0K91U4"},1,{"$f":"FETCHCOMMENT(G39)","v":"GRANITE CONSTRUCTION COMPANY"},12]
["AUSTIN ENTERPRISE",-4142,{"$f":"'[1]Construction Worksheet'!C36","v":1547578.08},"F",16,{"$f":"FETCHCOMMENT(E40)","v":"11-430384\n05-1J7804\n08-1J6104\n04-2K7404\n04-2Q8004\n05-1K4504\n05-1K6404\n06-487404\n12-0K91U4\n08-1K6904\n04-0K8004\n04-2Q5504\n07-347904\n07-351704\n08-1M7404\n10-1H7004"},11,{"$f":"FETCHCOMMENT(G40)","v":"HAZARD CONSTRUCTION ENGINEERING INC\nCALPORTLAND CONSTRUCTION\nFBD VANGUARD CONSTRUCTION, INC.\nBAY CITIES PAVING & GRADING, INC.\nGORDON N. BALL, INC.\nGRANITE CONSTRUCTION COMPANY\nGHILOTTI BROS INC\nRASMUSSEN/VANGUARD\nC. A. RASMUSSEN, INC.\nINTERSTATE CIVIL CONSTRUCTION\nGEORGE REED, INC."},"4,5,6,7,8,10,11,12"]
["BAY LINE CUTTING & CORING",-4142,{"$f":"'[1]Construction Worksheet'!G117","v":513089.78},"M",4,{"$f":"FETCHCOMMENT(E41)","v":"05-1H6504\n04-0Q2004\n04-0Q1304\n04-2Q5204"},4,{"$f":"FETCHCOMMENT(G41)","v":"GRANITE CONSTRUCTION COMPANY\nGHILOTTI BROS., INC.\nO.C. JONES & SONS, INC.\nBAY CITIES PAVING & GRADING, INC."},"4,5"]
["BCK CONSULTING",-4142,{"$f":"'[1]Construction Worksheet'!C41","v":9000},"F",1,{"$f":"FETCHCOMMENT(E42)","v":"01-0H6504"},1,{"$f":"FETCHCOMMENT(G42)","v":"WAHLUND CONSTRUCTION, INC."},1]
["BT TRUCKING, INC.",43,{"$f":"'[1]Construction Worksheet'!G122","v":627744},"M",2,{"$f":"FETCHCOMMENT(E43)","v":"07-351704\n07-369704"},1,{"$f":"FETCHCOMMENT(G43)","v":"C. A. RASMUSSEN, INC."},7]
["C&N REINFORCING INC",-4142,{"$f":"'[1]Construction Worksheet'!G128","v":597355.96},"M",4,{"$f":"FETCHCOMMENT(E44)","v":"04-2Q5504\n04-0P9304\n05-1G9504\n05-1G9504"},3,{"$f":"FETCHCOMMENT(G44)","v":"BAY CITIES PAVING & GRADING INC\nBUGLER CONSTRUCTION, INC.\nGORDON N BALL INC"},"4, 5"]
["CENTRAL COAST TRAFFIC SAFETY",33,{"$f":"'[1]Construction Worksheet'!G137","v":547549.30000000005},"M",4,{"$f":"FETCHCOMMENT(E45)","v":"05-1Q03U4\n05-1J8604\n05-1N3404\n07-355204"},3,{"$f":"FETCHCOMMENT(G45)","v":"PAPICH CONSTRUCTION COMPANY, INC.\nSOUZA ENGINEERING CONTRACTING, INC. DBA SOUZA CONSTRUCTION\nGRANITE CONSTRUCTION COMPANY"},"5,7"]
["CENTRAL VALLEY REINFORCING",33,{"$f":"'[1]Construction Worksheet'!G144","v":13350},"M",1,{"$f":"FETCHCOMMENT(E46)","v":"05-1N3404\n"},1,{"$f":"FETCHCOMMENT(G46)","v":"SOUZA ENGINEERING CONTRACTING, INC. DBA SOUZA CONSTRUCTION"},5]
["CHAVEZ TRUCKING",43,{"$f":"'[1]Construction Worksheet'!C49","v":2408174.6399999997},"F",5,{"$f":"FETCHCOMMENT(E47)","v":"04-2Q6104\n04-2K7404\n04-3J2604\n04-2Q8004\n04-2Q5204"},4,{"$f":"FETCHCOMMENT(G47)","v":"GRANITE ROCK COMPANY\nBAY CITIES PAVING & GRADING, INC.\nO.C. JONES & SONS, INC.\nGORDON N. BALL, INC."},4]
["COASTLINE COMMERCIAL SWEEPERS INC",43,{"$f":"'[1]Construction Worksheet'!C56","v":287910},"F",2,{"$f":"FETCHCOMMENT(E48)","v":"07-332304\n07-346804"},1,{"$f":"FETCHCOMMENT(G48)","v":"TORO ENTERPRISES INC"},7]
["COVARRUBIAS TRAFFIC CONTROL",-4142,{"$f":"'[1]Construction Worksheet'!C66","v":1002000},"F",3,{"$f":"FETCHCOMMENT(E49)","v":"07-4X9704\n08-1K4004\n12-0R3114"},1,{"$f":"FETCHCOMMENT(G49)","v":"BEADOR CONSTRUCTION COMPANY, INC."},"7,8,12"]
["CUJO CONSTRUCTION INC",33,{"$f":"'[1]Construction Worksheet'!C76","v":262582},"F",3,{"$f":"FETCHCOMMENT(E50)","v":"07-358404\n12-0K91U4\n12-0S8404"},2,{"$f":"FETCHCOMMENT(G50)","v":"YAKAR\nGRANITE CONSTRUCTION COMPANY\nBAKER ELECTRIC & RENEWABLES, LLC"},"7,12"]
["D.B. ELECTRIC INC",-4142,{"$f":"'[1]Construction Worksheet'!G159","v":11966757},"M",4,{"$f":"FETCHCOMMENT(E51)","v":"08-1J3004\n12-0R3114\n08-1J5404\n08-1C07U4"},4,{"$f":"FETCHCOMMENT(G51)","v":"SULLY-MILLER CONTRACTING COMPANY\nBEADOR CONSTRUCTION COMPANY, INC.\nFLATIRON WEST\nGRIFFITH COMPANY"},"8,12"]
["D.C. DRILLING INC",-4142,{"$f":"'[1]Construction Worksheet'!G165","v":10770.94},"M",1,{"$f":"FETCHCOMMENT(E52)","v":"12-0S8404"},1,{"$f":"FETCHCOMMENT(G52)","v":"BAKER ELECTRIC & RENEWABLES, LLC"},12]
["DC TRAFFIC CONTROL",-4142,{"$f":"'[1]Construction Worksheet'!G176","v":615060},"M",2,{"$f":"FETCHCOMMENT(E53)","v":"06-487404\n07-348204"},2,{"$f":"FETCHCOMMENT(G53)","v":"GRANITE CONSTRUCTION COMPANY\nBOSCO CONSTRUCTORS, INC."},"6,7"]
["DELTA BAY CONSULTANTS LLC",-4142,{"$f":"'[1]Construction Worksheet'!G194","v":20000},"M",13,{"$f":"FETCHCOMMENT(E54)","v":"03-4H8704\n01-0F7104\n02-0K6404\n01-0H6404\n05-1H6504\n05-1K6404\n04-4G7804\n07-347904\n12-0K8704\n01-0K8904\n02-2J2204\n01-0H6504\n03-3J9004"},9,{"$f":"FETCHCOMMENT(G54)","v":"O.C. JONES & SONS INC\nGHILOTTI CONSTRUCTION COMPANY\nMCCUEN CONSTRUCTION\nRASMUSSEN/VANGUARD\nORTIZ ENTERPRISES INC\nGRANITE CONSTRUCTION COMPANY\nHIGHWAY SPECIALTY COMPANY INC\nWAHLUND CONSTRUCTION, INC.\nPACIFIC INFRASTRUCTURE INC"},"1,2,3,4,7,12"]
["DESIGN BUILD ENGINEERING",-4142,{"$f":"'[1]Construction Worksheet'!G204","v":3264640.1},"M",7,{"$f":"FETCHCOMMENT(E55)","v":"07-348404\n07-356504\n12-0K91U4\n12-0R57U4\n07-370404\n07-347904\n07-369704"},6,{"$f":"FETCHCOMMENT(G55)","v":"ACCU CONSTRUCTION, INC.\nGRANITE CONSTRUCTION COMPANY\nSECURITY PAVING COMPANY, INC.\nGRIFFITH COMPANY\nRASMUSSEN/VANGUARD\nC. A. RASMUSSEN, INC."},"7,12"]
["DIRT DYNASTY, INC.",-4142,{"$f":"'[1]Construction Worksheet'!G230","v":10200},"M",1,{"$f":"FETCHCOMMENT(E56)","v":"10-1H7004"},1,{"$f":"FETCHCOMMENT(G56)","v":"GEORGE REED, INC."},10]
["DON MAHAFFEY DRILLING",-4142,{"$f":"'[1]Construction Worksheet'!C82","v":201426.4},"F",1,{"$f":"FETCHCOMMENT(E57)","v":"12-0K8704"},1,{"$f":"FETCHCOMMENT(G57)","v":"ORTIZ ENTERPRISES INC"},12]
["DRAGON MATERIAL TRANSPORT",33,{"$f":"'[1]Construction Worksheet'!C93","v":1778259.9700000002},"F",5,{"$f":"FETCHCOMMENT(E58)","v":"05-1H6504\n06-487404\n04-0K8004\n04-4G7804\n02-0J8504"},4,{"$f":"FETCHCOMMENT(G58)","v":"GRANITE CONSTRUCTION COMPANY\nGHILOTTI BROS INC\nO.C. JONES & SONS, INC.\nTULLIS INC"},"2,4,5,6"]
["DRS REBAR INC",-4142,{"$f":"'[1]Construction Worksheet'!G224","v":1663402.35},"M",10,{"$f":"FETCHCOMMENT(E59)","v":"11-430384\n08-1J7204\n12-0R3154\n07-370404\n12-0R32U4\n07-347904\n12-0R3114\n12-OK8704\n08-1J5404\n08-1J3104"},9,{"$f":"FETCHCOMMENT(G59)","v":"HAZARD CONSTRUCTION ENGR, LLC\nSULLY-MILLER CONTRACTING COMPANY\nPOWELL CONSTRUCTORS, INC.\nGRIFFITH COMPANY\nR.J. NOBLE COMPANY\nRASMUSSEN/VANGUARD\nBEADOR CONSTRUCTION COMPANY, INC.\nORTIZ ENTERPRISES INC\nINTERSTATE CIVIL CONSTRUCTION"},"7,8,11,12"]
["EIGHTEEN TRUCKING",43,{"$f":"'[1]Construction Worksheet'!C98","v":465000},"F",1,{"$f":"FETCHCOMMENT(E60)","v":"04-2Q8004"},1,{"$f":"FETCHCOMMENT(G60)","v":"GORDON N. BALL, INC."},4]
["ENDEMIC ENVIRONMENTAL SERVICES",-4142,{"$f":"'[1]Construction Worksheet'!G249","v":1259945},"M",11,{"$f":"FETCHCOMMENT(E61)","v":"03-0J01U4\n05-1J7804\n12-0R3134\n01-0F7104\n03-3H8304\n08-1J2704\n12-0R57U4\n08-1K6904\n06-0W79U4\n01-0H6504\n03-0J5604"},9,{"$f":"FETCHCOMMENT(G61)","v":"MERCER-FRASER COMPANY\nCALPORTLAND CONSTRUCTION\nPETERSON-CHASE GENERAL ENGINEERING CONSTRUCTION, INC.\nGHILOTTI CONSTRUCTION COMPANY\nPACIFIC INFRASTRUCTURE CONSTRUCTION, LLC\nSULLY-MILLER CONTRACTING COMPANY\nSECURITY PAVING COMPANY, INC.\nGRANITE CONSTRUCTION COMPANY\nWAHLUND CONSTRUCTION, INC."},"1,3,5,6,8,12"]
["FLASH TRAFFIC INC",-4142,{"$f":"'[1]Construction Worksheet'!C106","v":84180},"F",2,{"$f":"FETCHCOMMENT(E62)","v":"07-332304\n07-355204"},2,{"$f":"FETCHCOMMENT(G62)","v":"TORO ENTERPRISES\nGRANITE CONSTRUCTION COMPANY"},7]
["FORTE ENGINEERING",-4142,{"$f":"'[1]Construction Worksheet'!C111","v":3808431.4000000004},"F",2,{"$f":"FETCHCOMMENT(E63)","v":"07-347904\n07-346504"},2,{"$f":"FETCHCOMMENT(G63)","v":"RASMUSSEN/VANGUARD\nSECURITY PAVING COMPANY, INC."},7]
["FRONTLINE TRAFFIC CONTROL",-4142,{"$f":"'[1]Construction Worksheet'!G270","v":276765},"M",2,{"$f":"FETCHCOMMENT(E64)","v":"07-358404\n07-348504"},1,{"$f":"FETCHCOMMENT(G64)","v":"YAKAR"},7]
["FULL TRAFFIC MAINTENANCE, INC.",-4142,{"$f":"'[1]Construction Worksheet'!G279","v":740931},"M",3,{"$f":"FETCHCOMMENT(E65)","v":"07-351704\n12-0K8704\n12-0S8404"},2,{"$f":"FETCHCOMMENT(G65)","v":"C. A. RASMUSSEN, INC.\nORTIZ ENTERPRISES INC\nBAKER ELECTRIC & RENEWABLES, LLC"},"7,12"]
["G&F CONCRETE CUTTING",-4142,{"$f":"'[1]Construction Worksheet'!C119","v":1593133.7},"F",4,{"$f":"FETCHCOMMENT(E66)","v":"12-0R57U4\n12-0R3114\n08-0G8504\n08-1J5404"},4,{"$f":"FETCHCOMMENT(G66)","v":"SECURITY PAVING COMPANY, INC.\nBEADOR CONSTRUCTION COMPANY, INC.\nGRANITE CONSTRUCTION COMPANY\nFLATIRON WEST INC"},"8,12"]
["G&G ELECTRIC",-4142,{"$f":"'[1]Construction Worksheet'!G285","v":5379795},"M",1,{"$f":"FETCHCOMMENT(E67)","v":"12-0R3154"},1,{"$f":"FETCHCOMMENT(G67)","v":"POWELL CONSTRUCTORS, INC."},12]
["GALVAN REINFORCING COMPANY",-4142,{"$f":"'[1]Construction Worksheet'!G290","v":303761.8},"M",2,{"$f":"FETCHCOMMENT(E68)","v":"07-350314\n07-346504"},2,{"$f":"FETCHCOMMENT(G68)","v":"CROSSTOWN ELECTRICAL & DATA, INC.\nSECURITY PAVING COMPANY, INC."},7]
["GEO-STRUCTURAL ENGINEERING",-4142,{"$f":"'[1]Construction Worksheet'!G296","v":864254},"M",2,{"$f":"FETCHCOMMENT(E69)","v":"07-4X9704\n05-1G9504"},2,{"$f":"FETCHCOMMENT(G69)","v":"BEADOR CONSTRUCTION COMPANY, INC.\nGORDON N BALL"},"5,7"]
["GLJ CONSTRUCTION",-4142,{"$f":"'[1]Construction Worksheet'!G302","v":1124000},"M",1,{"$f":"FETCHCOMMENT(E70)","v":"01-0H6504"},1,{"$f":"FETCHCOMMENT(G70)","v":"WAHLUND CONSTRUCTION, INC."},1]
["G.O. RODRIGUEZ TRUCKING",43,{"$f":"'[1]Construction Worksheet'!G308","v":15120},"M",1,{"$f":"FETCHCOMMENT(E71)","v":"07-4X9704"},1,{"$f":"FETCHCOMMENT(G71)","v":"BEADOR CONSTRUCTION COMPANY, INC."},7]
["GOLDEN BAY FENCE PLUS IRON",33,{"$f":"'[1]Construction Worksheet'!G319","v":1235267.74},"M",6,{"$f":"FETCHCOMMENT(E72)","v":"04-3J2604\n05-1H6504\n04-0K8004\n07-332304\n05-1G9504\n04-2Q5204"},6,{"$f":"FETCHCOMMENT(G72)","v":"O.C. JONES & SONS, INC.\nGRANITE CONSTRUCTION COMPANY\nGHILOTTI BROS INC\nTORO ENTERPRISES INC\nGORDON N BALL INC\nBAY CITIES PAVING & GRADING, INC."},"4,5,7"]
["GREENCOAST LANDSCAPE, INC.",-4142,{"$f":"'[1]Construction Worksheet'!C128","v":2185596},"F",5,{"$f":"FETCHCOMMENT(E73)","v":"05-1K4504\n05-1J8604\n07-347904\n07-351704\n07-360704"},4,{"$f":"FETCHCOMMENT(G73)","v":"CALPORTLAND CONSTRUCTION\nPAPICH CONSTRUCTION COMPANY, INC.\nRASMUSSEN/VANGUARD\nC. A. RASMUSSEN, INC."},"5,7"]
["H&G CONSTRUCTION",-4142,{"$f":"'[1]Construction Worksheet'!G325","v":985978.8},"M",2,{"$f":"FETCHCOMMENT(E74)","v":"04-2Q5504\n04-0Q1304"},2,{"$f":"FETCHCOMMENT(G74)","v":"BAY CITIES PAVING & GRADING INC\nO.C. JONES & SONS, INC."},4]
["HIGH LIGHT ELECTRIC, INC.",-4142,{"$f":"'[1]Construction Worksheet'!G347","v":17488927.600000001},"M",8,{"$f":"FETCHCOMMENT(E75)","v":"12-0R3134\n11-056404\n08-1K4004\n12-0K91U4\n09-374704\n09-379104\n06-0W79U4\n06-1F1804"},8,{"$f":"FETCHCOMMENT(G75)","v":"PETERSON-CHASE GENERAL ENGINEERING CONSTRUCTION, INC.\nHAZARD CONSTRUCTION COMPANY\nBEADOR CONSTRUCTION COMPANY, INC.\nGRANITE CONSTRUCTION COMPANY\nPAPICH CONSTRUCTION COMPANY INC\nROAD AND HIGHWAY BUILDERS LLC\nSECURITY PAVING COMPANY, INC.\nGRIFFITH COMPANY"},"6,8,9,11,12"]
["IN-LINE FENCE & RAILING",-4142,{"$f":"'[1]Construction Worksheet'!G353","v":474725},"M",1,{"$f":"FETCHCOMMENT(E76)","v":"12-0K91U4"},1,{"$f":"FETCHCOMMENT(G76)","v":"GRANITE CONSTRUCTION COMPANY"},12]
["INLAND GARDENS AND TROPICS",-4142,{"$f":"'[1]Construction Worksheet'!C133","v":118287.73},"F",1,{"$f":"FETCHCOMMENT(E77)","v":"08-1K4004"},1,{"$f":"FETCHCOMMENT(G77)","v":"BEADOR CONSTRUCTION COMPANY, INC."},8]
["J. PEREZ TRANSPORT",43,{"$f":"'[1]Construction Worksheet'!G359","v":1174250},"M",1,{"$f":"FETCHCOMMENT(E78)","v":"09-379104"},1,{"$f":"FETCHCOMMENT(G78)","v":"ROAD AND HIGHWAY BUILDERS"},9]
["JEFFERSON STATE HIGHWAYS INC",-4142,{"$f":"'[1]Construction Worksheet'!G388","v":5285968.330000001},"M",22,{"$f":"FETCHCOMMENT(E79)","v":"03-4H8704\n03-0J01U4\n02-3H6904\n01-0F7104\n01-0J8904\n02-0K6404\n02-4H03U4\n02-1J75U4\n02-4H0104\n02-4H0704\n03-3H8304\n04-2Q8004\n04-2Q5504\n04-2Q6504\n07-347904\n07-369704\n09-366804\n01-0K8904\n04-2K3604\n05-1G9504\n03-0J5604\n04-2Q5204"},14,{"$f":"FETCHCOMMENT(G79)","v":"O.C. JONES & SONS INC\nMERCER-FRASER COMPANY\nJEFFERSON STATE HIGHWAYS, INC.\nGHILOTTI CONSTRUCTION COMPANY INC\nMCCUEN CONSTRUCTION INC\nHAT CREEK CONSTRUCTION MATERIALS\nPACIFIC INFRASTRUCTURE CONSTRUCTION, LLC\nGORDON N. BALL, INC.\nBAY CITIES PAVING & GRADING INC\nRASMUSSEN/VANGUARD\nC. A. RASMUSSEN, INC.\nPAPICH CONSTRUCTION COMPANY\nGRANITE CONSTRUCTION COMPANY\nGHILOTTI BROS., INC."},"1,2,3,4,7,9"]
["JFL ELECTRIC",-4142,{"$f":"'[1]Construction Worksheet'!G398","v":26008815},"M",6,{"$f":"FETCHCOMMENT(E80)","v":"08-1K6904\n07-332304\n07-346804\n12-0R32U4\n07-348204\n07-350324"},5,{"$f":"FETCHCOMMENT(G80)","v":"GRANITE CONSTRUCTION COMPANY\nTORO ENTERPRISES INC\nR.J. NOBLE COMPANY\nBOSCO CONSTRUCTORS, INC.\nJFL ELECTRIC, INC."},"7,8,12"]
["JUNIOR SWEEPING COMPANY LLC",43,{"$f":"'[1]Construction Worksheet'!G406","v":117720},"M",3,{"$f":"FETCHCOMMENT(E81)","v":"01-0F7104\n05-1K6404\n10-1H7004"},3,{"$f":"FETCHCOMMENT(G81)","v":"GHILOTTI CONSTRUCTION COMPANY, INC.\nGRANITE CONSTRUCTION COMPANY\nGEORGE REED, INC."},"1,5,10"]
["LA FIRMA INC",-4142,{"$f":"'[1]Construction Worksheet'!G418","v":3750},"M",1,{"$f":"FETCHCOMMENT(E82)","v":"07-370404"},1,{"$f":"FETCHCOMMENT(G82)","v":"GRIFFITH COMPANY"},7]
["LA STEEL SERVICES, INC.",-4142,{"$f":"'[1]Construction Worksheet'!G424","v":658838.19999999995},"M",2,{"$f":"FETCHCOMMENT(E83)","v":"08-1K6904\n08-0G8504"},1,{"$f":"FETCHCOMMENT(G83)","v":"GRANITE CONSTRUCTION COMPANY\n"},8]
["LASER BRIDGE INDUSTRIAL",33,{"$f":"'[1]Construction Worksheet'!G433","v":60070.51},"M",1,{"$f":"FETCHCOMMENT(E84)","v":"12-0K8704"},1,{"$f":"FETCHCOMMENT(G84)","v":"ORTIZ ENTERPRISES INC"},12]
["LIZ TRANSPORT",43,{"$f":"'[1]Construction Worksheet'!C139","v":313556},"F",1,{"$f":"FETCHCOMMENT(E85)","v":"07-348204"},1,{"$f":"FETCHCOMMENT(G85)","v":"BOSCO CONSTRUCTORS, INC."},7]
["LOGISTICAL ENTERPRISES",33,{"$f":"'[1]Construction Worksheet'!C152","v":1789650.96},"F",9,{"$f":"FETCHCOMMENT(E86)","v":"03-4H8704\n03-0J01U4\n04-0K1004\n12-0S1404\n04-3J2604\n04-0K8004\n07-348204\n10-1H7004\n04-1W0904"},8,{"$f":"FETCHCOMMENT(G86)","v":"O.C. JONES & SONS INC\n MERCER-FRASER COMPANY\nMIKE BROWN ELECTRIC CO.\nCHUMO CONSTRUCTION INC\nGHILOTTI BROS INC\nBOSCO CONSTRUCTORS, INC.\nGEORGE REED, INC.\nCROSSTOWN ELECTRICAL & DATA, INC."},"3,4,10,12"]
["LONE STAR LANDSCAPE",-4142,{"$f":"'[1]Construction Worksheet'!G448","v":1927725},"M",10,{"$f":"FETCHCOMMENT(E87)","v":"04-0P9204\n04-0P7604\n05-1H6504\n05-1K6404\n04-0K8004\n04-3Q8504\n04-4G7804\n04-0Q2004\n05-1G9504\n04-1W0904"},8,{"$f":"FETCHCOMMENT(G87)","v":"MYERS & SONS CONSTRUCTION, LLC.\nST. FRANCIS ELECTRIC, LLC.\nGRANITE CONSTRUCTION COMPANY\nGHILOTTI BROS INC\nTENNYSON ELECTRIC INC\nO.C. JONES & SONS, INC.\nGORDON N BALL INC\nCROSSTOWN ELECTRICAL & DATA, INC."},"4,5"]
["LOS MORALES TRUCKING, INC.",43,{"$f":"'[1]Construction Worksheet'!G458","v":594300},"M",3,{"$f":"FETCHCOMMENT(E88)","v":"08-1K4004\n08-1M7404\n08-1J3104"},2,{"$f":"FETCHCOMMENT(G88)","v":"BEADOR CONSTRUCTION COMPANY, INC.\nINTERSTATE CIVIL CONSTRUCTION"},8]
["M&S ENVIRONMENTAL",33,{"$f":"'[1]Construction Worksheet'!G471","v":3024216.45},"M",6,{"$f":"FETCHCOMMENT(E89)","v":"02-3H6904\n01-0J8904\n02-0K6404\n01-0J2104\n01-0H6504\n02-0J8504"},5,{"$f":"FETCHCOMMENT(G89)","v":"DIG IT CONSTRUCTION, INC.\nMERCER FRASER COMPANY\nMCCUEN CONSTRUCTION\nWAHLUND CONSTRUCTION, INC.\nTULLIS INC"},"1,2"]
["MADERA CONCRETE COMPANY",-4142,{"$f":"'[1]Construction Worksheet'!G477","v":333786},"M",2,{"$f":"FETCHCOMMENT(E90)","v":"06-487404\n10-1L8704"},1,{"$f":"FETCHCOMMENT(G90)","v":"GRANITE CONSTRUCTION COMPANY"},"6,10"]
["MANERI TRAFFIC CONTROL",33,{"$f":"'[1]Construction Worksheet'!C190","v":37342451.219999991},"F",28,{"$f":"FETCHCOMMENT(E91)","v":"11-430384\n12-0S1404\n07-333604\n08-1J6104\n07-358404\n08-1J3004\n08-1J2704\n08-1J7204\n08-1K4004\n12-0R3154\n12-0R57U4\n12-0S7004\n08-1K6904\n07-370404\n12-0R32U4\n07-347904\n07-350314\n07-350334\n07-351704\n08-1J4504\n07-346304\n07-369704\n08-0G8504\n12-0K8704\n12-0U9104\n07-346504\n08-1C07U4"},17,{"$f":"FETCHCOMMENT(G91)","v":"HAZARD CONSTRUCTION ENGR, LLC\nCHUMO CONSTRUCTION INC\nSULLY-MILLER CONTRACTING COMPANY\nFBD VANGUARD CONSTRUCTION, INC.\nYAKAR\nBEADOR CONSTRUCTION COMPANY, INC.\nPOWELL CONSTRUCTORS, INC.\nSECURITY PAVING COMPANY, INC.\nAUTOBAHN CONSTRUCTION, INC.\nGRANITE CONSTRUCTION COMPANY\nGRIFFITH COMPANY \nR.J. NOBLE COMPANY\nRASMUSSEN/VANGUARD\nC. A. RASMUSSEN, INC.\nCROSSTOWN ELECTRICAL & DATA, INC.\nALL AMERICAN ASPHALT\nORTIZ ENTERPRISES INC"},"7,8,11,12"]
["MAVERICK SWEEPING",43,{"$f":"'[1]Construction Worksheet'!C198","v":275744},"F",3,{"$f":"FETCHCOMMENT(E92)","v":"08-1K4004\n07-354704\n12-0K8704"},3,{"$f":"FETCHCOMMENT(G92)","v":"BEADOR CONSTRUCTION COMPANY, INC.\nCERTIFIED COATING COMPANY\nORTIZ ENTERPRISES INC"},"7,8,12"]
["MESA TRAFFIC SERVICES",-4142,{"$f":"'[1]Construction Worksheet'!G482","v":123250},"M",1,{"$f":"FETCHCOMMENT(E93)","v":"07-351704"},1,{"$f":"FETCHCOMMENT(G93)","v":"C. A. RASMUSSEN, INC."},7]
["MONZON & SON ENTERPRISES INC",43,{"$f":"'[1]Construction Worksheet'!G505","v":15278262.65},"M",13,{"$f":"FETCHCOMMENT(E94)","v":"11-430384\n12-0S1404\n07-333604\n08-1J6104\n12-0R3134\n08-1J2704\n08-1J7204\n12-0R57U4\n07-347904\n12-0R3114\n12-0K8704\n07-346304\n07-346504"},9,{"$f":"FETCHCOMMENT(G94)","v":"HAZARD CONSTRUCTION ENGR, LLC\nCHUMO CONSTRUCTION INC\nSULLY-MILLER CONTRACTING COMPANY\nFBD VANGUARD CONSTRUCTION, INC.\nPETERSON-CHASE GENERAL ENGINEERING CONSTRUCTION, INC.\nSECURITY PAVING COMPANY, INC.\nRASMUSSEN/VANGUARD\nBEADOR CONSTRUCTION COMPANY, INC.\nORTIZ ENTERPRISES INC"},"7,8,11,12"]
["MORAN CONSULTING",-4142,{"$f":"'[1]Construction Worksheet'!G511","v":94640},"M",1,{"$f":"FETCHCOMMENT(E95)","v":"07-333604"},1,{"$f":"FETCHCOMMENT(G95)","v":"SULLY-MILLER CONTRACTING COMPANY"},7]
["NOLD'S EQUIPMENT",33,{"$f":"'[1]Construction Worksheet'!C206","v":362808},"F",2,{"$f":"FETCHCOMMENT(E96)","v":"07-333604\n07-358404"},2,{"$f":"FETCHCOMMENT(G96)","v":"SULLY-MILLER CONTRACTING COMPANY\nYAKAR"},7]
["PRECISION GRADE, INC.",-4142,{"$f":"'[1]Construction Worksheet'!G517","v":3996411},"M",1,{"$f":"FETCHCOMMENT(E97)","v":"05-1H6914"},1,{"$f":"FETCHCOMMENT(G97)","v":"PRECISION GRADE, INC."},5]
["POLO ENGINEERING, INC.",-4142,{"$f":"'[1]Construction Worksheet'!C213","v":673013},"F",1,{"$f":"FETCHCOMMENT(E98)","v":"07-4P8504"},1,{"$f":"FETCHCOMMENT(G98)","v":"POLO ENGINEERING, INC."},7]
["PRE-CON PRODUCTS, LTD.",-4142,{"$f":"'[1]Construction Worksheet'!G525","v":658576.65999999992},"M",5,{"$f":"FETCHCOMMENT(E99)","v":"08-1K4004\n07-346804\n07-370404\n12-0R3114\n07-369704"},4,{"$f":"FETCHCOMMENT(G99)","v":"BEADOR CONSTRUCTION COMPANY, INC.\nTORO ENTERPRISES INC\nGRIFFITH COMPANY\nC. A. RASMUSSEN, INC."},"7,8,12"]
["PREMIER SIGN SERVICE INC",-4142,11302433.039999999,"M",6,{"$f":"FETCHCOMMENT(E100)","v":"12-0R32U4\n07-347904\n07-348204\n12-0K8704\n08-1J5404\n06-0U2904"},6,{"$f":"FETCHCOMMENT(G100)","v":"R.J. NOBLE COMPANY\nRASMUSSEN/VANGUARD\nBOSCO CONSTRUCTORS, INC.\nORTIZ ENTERPRISES INC\nFLATIRON WEST, INC.\nGRIFFITH COMPANY"},"6,8,12"]
["PREMIER VALLEY TRANSPORT INC",43,{"$f":"'[1]Construction Worksheet'!G548","v":2214250},"M",4,{"$f":"FETCHCOMMENT(E101)","v":"05-1Q03U4\n09-374704\n05-1J8604\n06-0Y1704"},1,{"$f":"FETCHCOMMENT(G101)","v":"PAPICH CONSTRUCTION COMPANY, INC."},"5,6,9"]
["PTM GENERAL ENGINEERING",-4142,{"$f":"'[1]Construction Worksheet'!C220","v":1264843},"F",3,{"$f":"FETCHCOMMENT(E102)","v":"07-4P8504\n05-1K5104\n12-0U9204"},2,{"$f":"FETCHCOMMENT(G102)","v":"PTM GENERAL ENGINEERING SERVICES, INC.\nCENTRAL COAST FINANCIAL GROUP, INC. DBA CCFG CONSTRUCTION"},"5,7,12"]
["QA CONSTRUCTORS",-4142,{"$f":"'[1]Construction Worksheet'!G556","v":1585280},"M",3,{"$f":"FETCHCOMMENT(E103)","v":"04-0P9204\n04-0P7604\n04-0P9304"},3,{"$f":"FETCHCOMMENT(G103)","v":"MYERS & SONS CONSTRUCTION, LLC.\nST. FRANCIS ELECTRIC, LLC.\nBUGLER CONSTRUCTION, INC."},4]
["QUALITY TRAFFIC CONTROL",-4142,{"$f":"'[1]Construction Worksheet'!G567","v":1221070.5},"M",5,{"$f":"FETCHCOMMENT(E104)","v":"11-056404\n12-0K91U4\n07-354704\n12-0R3114\n11-430194"},4,{"$f":"FETCHCOMMENT(G104)","v":"HAZARD CONSTRUCTION ENGR, LLC\nGRANITE CONSTRUCTION COMPANY\nCERTIFIED COATINGS COMPANY\nBEADOR CONSTRUCTION COMPANY, INC."},"7,11,12"]
["QUIMU CONTRACTING, INC.",-4142,{"$f":"'[1]Construction Worksheet'!G571","v":386080},"M",1,{"$f":"FETCHCOMMENT(E105)","v":"03-3J9104"},1,{"$f":"FETCHCOMMENT(G105)","v":"QUIMU CONTRACTING, INC."},3]
["RAC CONSTRUCTION",-4142,{"$f":"'[1]Construction Worksheet'!G578","v":119167.5},"M",1,{"$f":"FETCHCOMMENT(E106)","v":"11-430194\n"},1,{"$f":"FETCHCOMMENT(G106)","v":"HAZARD CONSTRUCTION COMPANY DBA HAZARD CONSRUCTION ENGR LLC"},11]
["RANGEL BROTHERS TRUCKING",43,{"$f":"'[1]Construction Worksheet'!G592","v":1541400},"M",1,{"$f":"FETCHCOMMENT(E107)","v":"07-370404"},1,{"$f":"FETCHCOMMENT(G107)","v":"GRIFFITH COMPANY"},7]
["RE CHAFFEE CONSTRUCTION, INC.",-4142,{"$f":"'[1]Construction Worksheet'!G599","v":690583},"M",3,{"$f":"FETCHCOMMENT(E108)","v":"08-1M7404\n08-1M0404\n08-1J3104"},1,{"$f":"FETCHCOMMENT(G108)","v":"INTERSTATE CIVIL CONSTRUCTION"},8]
["REYCON CONSTRUCTION",-4142,{"$f":"'[1]Construction Worksheet'!G608","v":1314820},"M",1,{"$f":"FETCHCOMMENT(E109)","v":"08-0G8504"},1,{"$f":"FETCHCOMMENT(G109)","v":"GRANITE CONSTRUCTION COMPANY"},8]
["REYNAGA TRANSPORTATION",43,{"$f":"'[1]Construction Worksheet'!G616","v":2042160},"M",3,{"$f":"FETCHCOMMENT(E110)","v":"07-333604\n08-1J6104\n07-347904"},3,{"$f":"FETCHCOMMENT(G110)","v":"SULLY-MILLER CONTRACTING COMPANY\nFBD VANGUARD CONSTRUCTION, INC.\nRASMUSSEN/VANGUARD"},"7,8"]
["R.M.C. TRUCKING",43,{"$f":"'[1]Construction Worksheet'!G622","v":114500},"M",1,{"$f":"FETCHCOMMENT(E111)","v":"08-1J7204"},1,{"$f":"FETCHCOMMENT(G111)","v":"SULLY-MILLER CONTRACTING COMPANY"},8]
["ROBINSON SWEEPING INC",43,{"$f":"'[1]Construction Worksheet'!C244","v":385200},"F",4,{"$f":"FETCHCOMMENT(E112)","v":"03-0J01U4\n01-0J8904\n01-0J2104\n03-0J5604"},1,{"$f":"FETCHCOMMENT(G112)","v":"MERCER-FRASER COMPANY"},"1,3"]
["RUPERT CONSTRUCTION SUPPLY",33,{"$f":"'[1]Construction Worksheet'!G641","v":1900693.3499999999},"M",14,{"$f":"FETCHCOMMENT(E113)","v":"11-430384\n05-1J7804\n08-1J6104\n04-3J2604\n01-0H6404\n02-1J75U4\n04-2Q8004\n06-487404\n08-1K4004\n12-0K91U4\n04-0K8004\n09-374704\n07-347904\n05-1G9504\n07-346104"},13,{"$f":"FETCHCOMMENT(G113)","v":"HAZARD CONSTRUCTION ENGR, LLC\nCALPORTLAND CONSTRUCTION\nFBD VANGUARD CONSTRUCTION, INC.\nO.C. JONES AND SONS\nWYLATTI RESOURCE MANAGEMENT, INC.\nHAT CREEK CONSTRUCTION & MATERIALS, INC.\nGORDON N. BALL, INC.\nGRANITE CONSTRUCTION COMPANY\nBEADOR CONSTRUCTION COMPANY, INC.\nGHILOTTI BROS INC\nPAPICH CONSTRUCTION COMPANY INC\nRASMUSSEN/VANGUARD\nPOWELL CONSTRUCTORS, INC."},"1,2,4,5,6,7,8,9,11,12"]
["S&S TRUCKING",43,{"$f":"'[1]Construction Worksheet'!G648","v":1417802},"M",3,{"$f":"FETCHCOMMENT(E114)","v":"04-3J2604\n04-2Q5504\n04-0G3604"},2,{"$f":"FETCHCOMMENT(G114)","v":"O.C. JONES & SONS, INC.\nBAY CITIES PAVING & GRADING INC"},4]
["SAFEWAY SIGN COMPANY",-4142,{"$f":"'[1]Construction Worksheet'!G666","v":2013626.22},"M",11,{"$f":"FETCHCOMMENT(E115)","v":"11-430384\n08-1K4004\n12-0R3154\n07-347904\n08-1J4504\n12-0R3114\n07-346304\n11-430194\n02-2J2204\n07-346504\n02-0J8504"},7,{"$f":"FETCHCOMMENT(G115)","v":"HAZARD CONSTRUCTION ENGR, LLC\nBEADOR CONSTRUCTION COMPANY, INC.\nPOWELL CONSTRUCTORS, INC.\nCHUMO CONSTRUCTION, INC.\nHIGHWAY SPECIALTY COMPANY, INC.\nSECURITY PAVING COMPANY, INC.\nTULLIS INC"},"2,7,11"]
["SAWMAN CONCRETE CUTTING, INC.",-4142,{"$f":"'[1]Construction Worksheet'!G670","v":688867.2},"M",1,{"$f":"FETCHCOMMENT(E116)","v":"07-347904"},1,{"$f":"FETCHCOMMENT(G116)","v":"RASMUSSEN/VANGUARD"},7]
["SHARPLINE SOLUTIONS, INC.",-4142,{"$f":"'[1]Construction Worksheet'!G674","v":30415.09},"M",1,{"$f":"FETCHCOMMENT(E117)","v":"07-351704"},1,{"$f":"FETCHCOMMENT(G117)","v":"C. A. RASMUSSEN, INC."},7]
["SHIELD RENTALS & SALES LLC",-4142,{"$f":"'[1]Construction Worksheet'!G680","v":219300},"M",2,{"$f":"FETCHCOMMENT(E118)","v":"04-2Q8004\n04-0Q2004"},2,{"$f":"FETCHCOMMENT(G118)","v":"GORDON N. BALL, INC.\nGHILOTTI BROS., INC."},4]
["SOCAL WELDING",-4142,{"$f":"'[1]Construction Worksheet'!G684","v":337930.25},"M",1,{"$f":"FETCHCOMMENT(E119)","v":"04-2Q8004"},1,{"$f":"FETCHCOMMENT(G119)","v":"GORDON N. BALL, INC."},4]
["SWPPQUEEN",-4142,{"$f":"'[1]Construction Worksheet'!C252","v":14425},"F",1,{"$f":"FETCHCOMMENT(E120)","v":"04-0P7604"},1,{"$f":"FETCHCOMMENT(G120)","v":"ST. FRANCIS ELECTRIC, LLC."},4]
["TERRA WEST ",-4142,{"$f":"'[1]Construction Worksheet'!G693","v":6325},"M",3,{"$f":"FETCHCOMMENT(E121)","v":"11-430384\n11-056404\n11-430194"},1,{"$f":"FETCHCOMMENT(G121)","v":"HAZARD CONSTRUCTION ENGR, LLC"},11]
["TESORO CONSTRACTORS",-4142,{"$f":"'[1]Construction Worksheet'!G700","v":1149665},"M",2,{"$f":"FETCHCOMMENT(E122)","v":"11-430194\n07-348504\n"},2,{"$f":"FETCHCOMMENT(G122)","v":"HAZARD CONSTRUCTION COMPANY DBA HAZARD CONSRUCTION ENGR LLC\nYAKAR"},"7,11"]
["TOTAL BARRICADE SERVICE INC",-4142,{"$f":"'[1]Construction Worksheet'!G711","v":647240},"M",1,{"$f":"FETCHCOMMENT(E123)","v":"07-346804"},1,{"$f":"FETCHCOMMENT(G123)","v":"TORO ENTERPRISES INC"},7]
["TOTAL SITE SUPPLY COMPANY",33,{"$f":"'[1]Construction Worksheet'!G717","v":35526.339999999997},"M",1,{"$f":"FETCHCOMMENT(E124)","v":"08-1K4004"},1,{"$f":"FETCHCOMMENT(G124)","v":"BEADOR CONSTRUCTION COMPANY, INC."},8]
["TR DIGITAL, INC.",-4142,{"$f":"'[1]Construction Worksheet'!G719","v":100000},"M",1,{"$f":"FETCHCOMMENT(E125)","v":"04-2Q8004"},1,{"$f":"FETCHCOMMENT(G125)","v":"GORDON N. BALL, INC."},4]
["TRANSPACIFIC STEEL LLC",-4142,{"$f":"'[1]Construction Worksheet'!G733","v":5694292.8200000003},"M",6,{"$f":"FETCHCOMMENT(E126)","v":"05-1J7804\n04-2Q8004\n05-1K4504\n06-487404\n05-1J8604\n06-0W79U4"},6,{"$f":"FETCHCOMMENT(G126)","v":"CALPORTLAND CONSTRUCTION\nGORDON N. BALL, INC.\nGRANITE CONSTRUCTION COMPANY\nPAPICH CONSTRUCTION COMPANY, INC.\nFLATIRON WEST, INC.\nSECURITY PAVING COMPANY, INC."},"5,6"]
["TREESMITH ENTERPRISES",-4142,{"$f":"'[1]Construction Worksheet'!C296","v":858000},"F",1,{"$f":"FETCHCOMMENT(E127)","v":"08-1K6904"},1,{"$f":"FETCHCOMMENT(G127)","v":"GRANITE CONSTRUCTION COMPANY"},8]
["TULLY INC",-4142,{"$f":"'[1]Construction Worksheet'!C290","v":627244.98},"F",22,{"$f":"FETCHCOMMENT(E128)","v":"03-4H8704\n04-1Q2004\n10-0Q2104\n01-0F7104\n04-0K6404\n04-3J2604\n01-0H6404\n03-3H8304\n04-2Q8004\n06-487404\n10-1L2804\n04-4G7804\n04-0Q2004\n01-0K8904\n04-2K3604\n10-1H7004\n05-1G9504\n02-2J2204\n03-0J5604\n01-0H6504\n03-3J9004\n06-0U2904"},15,{"$f":"FETCHCOMMENT(G128)","v":"O.C. JONES & SONS INC\nCOLUMBIA ELECTRIC, INC.\nBAY CITIES PAVING & GRADING, INC.\nGHILOTTI CONSTRUCTION COMPANY, INC.\nWYLATTI RESOURCE MANAGEMENT, INC.\nPACIFIC INFRASTRUCTURE CONSTRUCTION, LLC\nGORDON N. BALL, INC.\nGRANITE CONSTRUCTION COMPANY\nGHILOTTI BROS., INC.\nGEORGE REED, INC.\nHIGHWAY SPECIALTY COMPANY, INC.\nWAHLUND CONSTRUCTION, INC.\nMERCER-FRASER COMPANY\nPACIFIC INFRASTRUCTURE\nGRIFFITH COMPANY"},"1,2,3,4,5,6,10"]
["UNITED SWEEPING",43,{"$f":"'[1]Construction Worksheet'!G751","v":45000},"M",1,{"$f":"FETCHCOMMENT(E129)","v":"10-1K8404"},1,{"$f":"FETCHCOMMENT(G129)","v":"MOUNTAIN CASCADE INC"},10]
["UNIVERSAL CONCRETE CONSTRUCTION",-4142,{"$f":"'[1]Construction Worksheet'!G743","v":1129682},"M",1,{"$f":"FETCHCOMMENT(E130)","v":"08-0G8504"},1,{"$f":"FETCHCOMMENT(G130)","v":"GRANITE CONSTRUCTION COMPANY"},8]
["V3 CONSTRCTION, INC.",-4142,{"$f":"'[1]Construction Worksheet'!G762","v":3996938.2},"M",1,{"$f":"FETCHCOMMENT(E131)","v":"08-1K6904"},1,{"$f":"FETCHCOMMENT(G131)","v":"GRANITE CONSTRUCTION COMPANY"},8]
["VALDIVIA TRUCKING",43,{"$f":"'[1]Construction Worksheet'!G770","v":335050},"M",1,{"$f":"FETCHCOMMENT(E132)","v":"04-4G7804"},1,{"$f":"FETCHCOMMENT(G132)","v":"O.C. JONES & SONS, INC."},4]
["VELARDE CONSTRUCTION",-4142,{"$f":"'[1]Construction Worksheet'!G777","v":957173.96},"M",1,{"$f":"FETCHCOMMENT(E133)","v":"08-1J5404"},1,{"$f":"FETCHCOMMENT(G133)","v":"FLATIRON WEST, INC."},8]
["WCW INC.",-4142,{"$f":"'[1]Construction Worksheet'!G791","v":2552139.4500000002},"M",2,{"$f":"FETCHCOMMENT(E134)","v":"04-2Q8004\n07-369704"},2,{"$f":"FETCHCOMMENT(G134)","v":"GORDON N. BALL, INC.\nC. A. RASMUSSEN, INC."},"4,7"]
["WEST PACIFIC CONCRETE",-4142,{"$f":"'[1]Construction Worksheet'!G795","v":102378.03},"M",1,{"$f":"FETCHCOMMENT(E135)","v":"08-1J2704"},1,{"$f":"FETCHCOMMENT(G135)","v":"SULLY-MILLER CONTRACTING COMPANY"},8]
["WESTERN TRAFFIC SUPPLY, INC.",33,{"$f":"'[1]Construction Worksheet'!G810","v":6889177},"M",11,{"$f":"FETCHCOMMENT(E136)","v":"04-2Q6104\n04-2K7404\n04-0P7604\n04-2Q5504\n04-3Q8504\n04-2Q6504\n04-1W0904\n04-0AA624\n04-2Q5204\n03-3J9004\n04-0G3604"},7,{"$f":"FETCHCOMMENT(G136)","v":"GRANITE ROCK COMPANY\nBAY CITIES PAVING & GRADING INC\nST. FRANCIS ELECTRIC, LLC.\nTENNYSON ELECTRIC LLC\nCROSSTOWN ELECTRICAL & DATA, INC.\nPACIFIC INFRASTRUCTURE INC\nBAY CITIES PAVING AND GRADING"},"3,4"]
["YMD MATERIAL BROKER",43,{"$f":"'[1]Construction Worksheet'!C302","v":240000},"F",1,{"$f":"FETCHCOMMENT(E137)","v":"08-1J7204"},1,{"$f":"FETCHCOMMENT(G137)","v":"SULLY-MILLER CONTRACTING COMPANY"},8]
["ZABEL ENTERPRISES",43,{"$f":"'[1]Construction Worksheet'!G819","v":970500},"M",2,{"$f":"FETCHCOMMENT(E138)","v":"01-0J8904\n01-0J2104"},1,{"$f":"FETCHCOMMENT(G138)","v":"MERCER-FRASER COMPANY"},4]
[null,null,null,null,null,{"$f":"FETCHCOMMENT(E139)","v":""},null,{"$f":"FETCHCOMMENT(G139)","v":""}]
[null,null,null,null,null,{"$f":"FETCHCOMMENT(E140)","v":""},null,{"$f":"FETCHCOMMENT(G140)","v":""}]
[null,null,null,null,null,{"$f":"FETCHCOMMENT(E141)","v":""},null,{"$f":"FETCHCOMMENT(G141)","v":""}]
[]
["Native American","Column1","Dollars","M/F","# of Contracts","Contract #","# of Primes","Prime Name","Districts"]
["CREST EQUIPMENT",-4142,{"$f":"'[1]Construction Worksheet'!K10","v":534100},"F",2,{"$f":"FETCHCOMMENT(E144)","v":"11-056404\n11-430194"},2,{"$f":"FETCHCOMMENT(G144)","v":"O.C. JONES & SONS, INC.\nHAZARD CONSTRUCTION COMPANY DBA HAZARD CONSRUCTION ENGR LLC"},11]
["DISABLED AMERICAN VETERAN ENTERPRISES TRUCKING & SWEEPING",33,{"$f":"'[1]Construction Worksheet'!O15","v":1049632},"M",1,{"$f":"FETCHCOMMENT(E145)","v":"06-0W79U4"},1,{"$f":"FETCHCOMMENT(G145)","v":"SECURITY PAVING COMPANY, INC."},6]
["FORCE TRAFFIC CONTROL",-4142,{"$f":"'[1]Construction Worksheet'!O21","v":150000},"M",1,{"$f":"FETCHCOMMENT(E146)","v":"10-1H7004"},1,{"$f":"FETCHCOMMENT(G146)","v":"GEORGE REED, INC."},10]
["GLOBAL TRANSLOADING",-4142,{"$f":"'[1]Construction Worksheet'!K16","v":165857},"F",1,{"$f":"FETCHCOMMENT(E147)","v":"07-346104"},1,{"$f":"FETCHCOMMENT(G147)","v":"POWELL CONSTRUCTORS, INC."},7]
["G R SUNDBERG, INC.",-4142,{"$f":"'[1]Construction Worksheet'!O38","v":7546784.25},"M",6,{"$f":"FETCHCOMMENT(E148)","v":"01-0K4104\n01-0J8904\n01-0K9404\n06-487404\n04-0K8004\n04-2K3604"},4,{"$f":"FETCHCOMMENT(G148)","v":"G R SUNDBERG, INC.\nMERCER-FRASER COMPANY\nWYLATTI RESOURCE MANAGEMENT, INC.\nGHILOTTI BROS INC"},"1,4"]
["HUFFORD CONSTRUCTION",-4142,{"$f":"'[1]Construction Worksheet'!O45","v":520000},"M",1,{"$f":"FETCHCOMMENT(E149)","v":"01-0H6504"},1,{"$f":"FETCHCOMMENT(G149)","v":"WAHLUND CONSTRUCTION, INC."},1]
["KRC SAFETY CO INC",33,{"$f":"'[1]Construction Worksheet'!O60","v":2481589},"M",8,{"$f":"FETCHCOMMENT(E150)","v":"05-1J7804\n06-0X2504\n05-1Q03U4\n05-1K4504\n05-1K5104\n05-1K6404\n06-487404\n06-0Y1704"},4,{"$f":"FETCHCOMMENT(G150)","v":"CALPORTLAND CONSTRUCTION\nPAPICH CONSTRUCTION COMPANY, INC.\nGRANITE CONSTRUCTION COMPANY\nCENTRAL COAST FINANCIAL GROUP, INC. DBA CCFG CONSTRUCTION"},"5,6"]
["SAM'S EQUIPMENT & SUPPLIES",33,{"$f":"'[1]Construction Worksheet'!O70","v":236621.79},"M",3,{"$f":"FETCHCOMMENT(E151)","v":"09-387704\n10-1L8704\n06-0Y1704"},3,{"$f":"FETCHCOMMENT(G151)","v":"SB GENERAL ENGINEERING INC\nGRANITE CONSTRUCTION COMPANY\nPAPICH CONSTRUCTION COMPANY, INC."},"6,9,10"]
["SPIRIT ROAD OILS",33,{"$f":"'[1]Construction Worksheet'!K35","v":579728},"F",3,{"$f":"FETCHCOMMENT(E152)","v":"04-2Q6104\n04-0K6404\n04-0AA624"},2,{"$f":"FETCHCOMMENT(G152)","v":"GRANITE ROCK COMPANY\nHAZARD CONSTRUCTION ENGR, LLC"},4]
["SPURS TRUCKING AND EQUIPMENT, INC.",43,{"$f":"'[1]Construction Worksheet'!K42","v":52200},"F",1,{"$f":"FETCHCOMMENT(E153)","v":"02-4H0604"},1,{"$f":"FETCHCOMMENT(G153)","v":"HAT CREEK CONSTRUCTION & MATERIALS, INC."},2]
["S.T. RHOADES CONSTRUCTION",-4142,{"$f":"'[1]Construction Worksheet'!O85","v":3303725.65},"M",8,{"$f":"FETCHCOMMENT(E154)","v":"02-4H0604\n02-4H03U4\n03-2J5904\n02-4H0104\n02-4H0704\n03-1H1404\n01-0J2104\n02-0J8504"},5,{"$f":"FETCHCOMMENT(G154)","v":"HAT CREEK CONSTRUCTION & MATERIALS, INC.\nSTUDEBAKER ELECTRIC, INC.\nMARTIN BROTHERS CONSTRUCTION\nMERCER-FRASER COMPANY\nTULLIS INC\n"},"1,2,3"]
["WEST COAST DRILLING",-4142,{"$f":"'[1]Construction Worksheet'!K49","v":6544740.1500000004},"F",2,{"$f":"FETCHCOMMENT(E155)","v":"06-487404\n09-366804"},2,{"$f":"FETCHCOMMENT(G155)","v":"GRANITE CONSTRUCTION COMPANY\nPAPICH CONSTRUCTION COMPANY"},"6,9"]
[null,null,null,null,null,{"$f":"FETCHCOMMENT(E156)","v":""},null,{"$f":"FETCHCOMMENT(G156)","v":""}]
[null,null,null,null,null,{"$f":"FETCHCOMMENT(E157)","v":""},null,{"$f":"FETCHCOMMENT(G157)","v":""}]
[]
["African American","Column1","Dollars","M/F","# of Contracts","Contract #","# of Primes","Prime Name","Districts"]
["ALLUVION BIOLOGICAL CONSULTING",-4142,{"$f":"'[1]Construction Worksheet'!W10","v":160600},"M",2,{"$f":"FETCHCOMMENT(E160)","v":"10-0Q2104\n01-0J8904\n"},2,{"$f":"FETCHCOMMENT(G160)","v":"BAY CITIES PAVING & GRADING, INC.\nMERCER-FRASER COMPANY"},"1,10"]
["AMERICAN TRAFFIC BARRICADE & SAFETY CO",-4142,{"$f":"'[1]Construction Worksheet'!W19","v":23776.799999999999},"M",1,{"$f":"FETCHCOMMENT(E161)","v":"09-387704"},1,{"$f":"FETCHCOMMENT(G161)","v":"SB GENERAL ENGINEERING INC"},9]
["APPIAN UDBE SWPPPS",-4142,{"$f":"'[1]Construction Worksheet'!S8","v":750},"F",1,{"$f":"FETCHCOMMENT(E162)","v":"05-1K6404"},1,{"$f":"FETCHCOMMENT(G162)","v":"GRANITE CONSTRUCTION COMPANY"},5]
["BARYEH CONSTRUCTION ENGINEERS",-4142,{"$f":"'[1]Construction Worksheet'!W27","v":666260},"M",1,{"$f":"FETCHCOMMENT(E163)","v":"07-346804"},1,{"$f":"FETCHCOMMENT(G163)","v":"TORO ENTERPRISES INC"},7]
["BLACK DIAMOND ASPHALT INC",33,{"$f":"'[1]Construction Worksheet'!S24","v":7189364.4799999995},"F",10,{"$f":"FETCHCOMMENT(E164)","v":"03-0J01U4\n03-4H8704\n01-0J8904\n10-1L2804\n04-2Q5504\n10-1J8204\n02-3H6904\n01-0H6004\n10-0Q2104\n01-0J2104"},6,{"$f":"FETCHCOMMENT(G164)","v":"MERCER-FRASER COMPANY\nO.C. JONES & SONS, INC.\nBAY CITIES PAVING & GRADING INC\nGEORGE REED, INC.\nDIG IT CONSTRUCTION, INC.\nARGONAUT CONSTRUCTORS"},"1,3,4,10"]
["CGO CONSTRUCTION COMPANY",-4142,{"$f":"'[1]Construction Worksheet'!W35","v":599600},"M",3,{"$f":"FETCHCOMMENT(E165)","v":"08-1K4004\n11-430194\n12-0K8704"},3,{"$f":"FETCHCOMMENT(G165)","v":"BEADOR CONSTRUCTION COMPANY, INC.\nHAZARD CONSTRUCTION COMPANY DBA HAZARD CONSRUCTION ENGR LLC\nORTIZ ENTERPRISES, INC."},"8,11,12"]
["DBE DIRECT, LLC",-4142,{"$f":"'[1]Construction Worksheet'!W41","v":1168500},"M",4,{"$f":"FETCHCOMMENT(E166)","v":"06-487404\n08-1K6904\n07-370404\n12-0K8704"},3,{"$f":"FETCHCOMMENT(G166)","v":"GRANITE CONSTRUCTION COMPANY\nGRIFFITH COMPANY\nORTIZ ENTERPRISES, INC."},"6,7,8,12"]
["DEPENDABLE PETROLEUM",33,{"$f":"'[1]Construction Worksheet'!W54","v":4025843.7},"M",8,{"$f":"FETCHCOMMENT(E167)","v":"07-4X9704\n08-1J4504\n07-347904\n12-0R3114\n07-346304\n08-0G8504\n01-0K8904\n10-1H7004"},6,{"$f":"FETCHCOMMENT(G167)","v":"BEADOR CONSTRUCTION COMPANY, INC.\nALL AMERICAN ASPHALT\nRASMUSSEN/VANGUARD\nGRANITE CONSTRUCTION COMPANY\nCHUMO CONSTRUCTION, INC.\nGEORGE REED, INC."},"1,7,8,10,12"]
["DOUBLE G'S SUPPLY INC",33,{"$f":"'[1]Construction Worksheet'!S45","v":36206.660000000003},"F",1,{"$f":"FETCHCOMMENT(E168)","v":"11-430194\n"},1,{"$f":"FETCHCOMMENT(G168)","v":"HAZARD CONSTRUCTION COMPANY DBA HAZARD CONSRUCTION ENGR LLC"},11]
["DYNAMIC GENERATOR SERVICE INC.",-4142,{"$f":"'[1]Construction Worksheet'!W60","v":864025},"M",2,{"$f":"FETCHCOMMENT(E169)","v":"10-1J8204\n10-1N9004"},2,{"$f":"FETCHCOMMENT(G169)","v":"GEORGE REED, INC.\nFBD VANGUARD CONSTRUCTION, INC."},10]
["HYDRO2GEOTECH, LLC",-4142,{"$f":"'[1]Construction Worksheet'!W66","v":247100},"M",2,{"$f":"FETCHCOMMENT(E170)","v":"05-1H6504\n12-0K91U4"},1,{"$f":"FETCHCOMMENT(G170)","v":"GRANITE CONSTRUCTION COMPANY"},"5,12"]
["K&G CONCRETE PUMPING",-4142,{"$f":"'[1]Construction Worksheet'!W72","v":44195.6},"M",2,{"$f":"FETCHCOMMENT(E171)","v":"05-1K6404\n04-2Q8004"},2,{"$f":"FETCHCOMMENT(G171)","v":"GRANITE CONSTRUCTION COMPANY\nGORDON N. BALL, INC."},"4,5"]
["MARVELLA STEEL PLACERS",-4142,{"$f":"'[1]Construction Worksheet'!S54","v":486661.10000000003},"F",2,{"$f":"FETCHCOMMENT(E172)","v":"07-348204\n12-0R3114"},2,{"$f":"FETCHCOMMENT(G172)","v":"BOSCO CONSTRUCTORS, INC.\nBEADOR CONSTRUCTION COMPANY, INC."},"7,12"]
["SNLM LANDSCAPE",-4142,{"$f":"'[1]Construction Worksheet'!W78","v":328000},"M",2,{"$f":"FETCHCOMMENT(E173)","v":"12-0K91U4\n08-1M7404"},2,{"$f":"FETCHCOMMENT(G173)","v":"GRANITE CONSTRUCTION COMPANY\nINTERSTATE CIVIL CONSTRUCTION"},"8,12"]
["SYNERGY TRAFFIC CONTROL",-4142,{"$f":"'[1]Construction Worksheet'!W87","v":653325},"M",1,{"$f":"FETCHCOMMENT(E174)","v":"12-0R3134"},1,{"$f":"FETCHCOMMENT(G174)","v":"PETERSON-CHASE GENERAL ENGINEERING CONSTRUCTION, INC."},12]
["THE QUALITY FIRM, ACS, AC SERVICES",-4142,{"$f":"'[1]Construction Worksheet'!W97","v":477059},"M",4,{"$f":"FETCHCOMMENT(E175)","v":"08-1J6104\n08-1J2704\n12-0K8704\n07-355204"},4,{"$f":"FETCHCOMMENT(G175)","v":"FBD VANGUARD CONSTRUCTION, INC.\nSULLY-MILLER CONTRACTING COMPANY\nORTIZ ENTERPRISES, INC.\nGRANITE CONSTRUCTION COMPANY"},"7,8,12"]
["THOMPSON CONTRACTING ",-4142,{"$f":"'[1]Construction Worksheet'!W103","v":2516950},"M",2,{"$f":"FETCHCOMMENT(E176)","v":"01-0F7104\n02-0K6404"},2,{"$f":"FETCHCOMMENT(G176)","v":"GHILOTTI CONSTRUCTION COMPANY, INC.\nMCCUEN CONSTRUCTION, INC."},"1,2"]
["TIPCO ENGINEERING, INC.",-4142,{"$f":"'[1]Construction Worksheet'!W109","v":2060770},"M",2,{"$f":"FETCHCOMMENT(E177)","v":"08-1K4004\n12-0K91U4"},2,{"$f":"FETCHCOMMENT(G177)","v":"BEADOR CONSTRUCTION COMPANY, INC.\nGRANITE CONSTRUCTION COMPANY"},"8,12"]
["ULTIMATE SECURITY SERVICES INC",-4142,{"$f":"'[1]Construction Worksheet'!W117","v":235200},"M",1,{"$f":"FETCHCOMMENT(E178)","v":"07-354704"},1,{"$f":"FETCHCOMMENT(G178)","v":"CERTIFIED COATINGS COMPANY"},7]
[null,null,null,null,null,{"$f":"FETCHCOMMENT(E179)","v":""},null,{"$f":"FETCHCOMMENT(G179)","v":""}]
[]
["Sub Cont Asian","Column1","Dollars","M/F","# of Contracts","Contract #","# of Primes","Prime Name","Districts"]
["5 AB TRANS, INC.",-4142,{"$f":"'[1]Construction Worksheet'!AE8","v":201560},"M",2,{"$f":"FETCHCOMMENT(E182)","v":"10-1H7004\n03-3J9004"},2,{"$f":"FETCHCOMMENT(G182)","v":"GRANITE CONSTRUCTION COMPANY\nPACIFIC INFRASTRUCTURE INC"},"1,3"]
["A1 TRUCKING SVS INC ",43,{"$f":"'[1]Construction Worksheet'!AE18","v":982657.44},"M",4,{"$f":"FETCHCOMMENT(E183)","v":"04-0P7604\n04-2Q8004\n05-1H6504\n05-1G9504"},3,{"$f":"FETCHCOMMENT(G183)","v":"ST. FRANCIS ELECTRIC, LLC.\nGORDON N. BALL, INC.\nGRANITE CONSTRUCTION COMPANY"},"4,5"]
["A1 TRUCKING SERVICES INC ",43,{"$f":"'[1]Construction Worksheet'!AE24","v":2895520},"M",3,{"$f":"FETCHCOMMENT(E184)","v":"04-1W0904\n04-0AA624\n04-0G3604"},3,{"$f":"FETCHCOMMENT(G184)","v":"CROSSTOWN ELECTRICAL & DATA INC\nGRANITE ROCK COMPANY\nBAY CITIES PAVING & GRADING, INC."},4]
["AMERICA PACIFIC CONSTRUCTION",43,{"$f":"'[1]Construction Worksheet'!AE33","v":285426},"M",1,{"$f":"FETCHCOMMENT(E185)","v":"08-1P2804"},1,{"$f":"FETCHCOMMENT(G185)","v":"AMERICA PACIFIC CONSTRUCTION INC"},8]
["C.C. PRODUCTS, INC.",33,{"$f":"'[1]Construction Worksheet'!AE49","v":1396448},"M",1,{"$f":"FETCHCOMMENT(E186)","v":"12-0R3114"},1,{"$f":"FETCHCOMMENT(G186)","v":"BEADOR CONSTRUCTION COMPANY, INC."},12]
["CENTRAL TRUCKING, INC.",43,{"$f":"'[1]Construction Worksheet'!AE55","v":864403.6},"M",4,{"$f":"FETCHCOMMENT(E187)","v":"10-0Q2104\n10-1L8704\n10-1J8204\n10-1K8404"},4,{"$f":"FETCHCOMMENT(G187)","v":"BAY CITIES PAVING & GRADING, INC.\nGRANITE CONSTRUCTION COMPANY\nGEORGE REED, INC.\nMOUNTAIN CASCADE INC"},"9,10"]
["DESTINATION ANYWHERE, INC.",33,{"$f":"'[1]Construction Worksheet'!AE43","v":84000},"M",1,{"$f":"FETCHCOMMENT(E188)","v":"10-1L2804"},1,{"$f":"FETCHCOMMENT(G188)","v":"O.C. JONES & SONS, INC."},10]
["GEODE ENVIRONMENTAL",-4142,{"$f":"'[1]Construction Worksheet'!AA10","v":225500},"M",1,{"$f":"FETCHCOMMENT(E189)","v":"09-374704"},1,{"$f":"FETCHCOMMENT(G189)","v":"PAPICH CONSTRUCTION COMPANY"},9]
["JABI TRUCKING",43,{"$f":"'[1]Construction Worksheet'!AE64","v":3482110},"M",2,{"$f":"FETCHCOMMENT(E190)","v":"01-0H6004\n01-0H6404"},2,{"$f":"FETCHCOMMENT(G190)","v":"ARGONAUT CONSTRUCTORS"},1]
["JASS BOYS TRUCK LINES",43,{"$f":"'[1]Construction Worksheet'!AE75","v":3650023},"M",5,{"$f":"FETCHCOMMENT(E191)","v":"04-2K7404\n04-0K8004\n04-2Q5504\n04-0Q2004\n04-2Q5204"},2,{"$f":"FETCHCOMMENT(G191)","v":"BAY CITIES PAVING & GRADING, INC.\nGHILOTTI BROS INC"},4]
["NAMAN TRUCKING",43,{"$f":"'[1]Construction Worksheet'!AE85","v":1265085.3999999999},"M",5,{"$f":"FETCHCOMMENT(E192)","v":"04-0Q2004\n07-347904\n07-348204\n07-369704\n07-346504"},5,{"$f":"FETCHCOMMENT(G192)","v":"GHILOTTI BROS., INC.\nRASMUSSEN/VANGUARD\nBOSCO CONSTRUCTORS, INC.\nC.A. RASMUSSEN INC\nSECURITY PAVING COMPANY, INC."},"4,7"]
["R&G TRUCKING",43,{"$f":"'[1]Construction Worksheet'!AE90","v":289437},"M",2,{"$f":"FETCHCOMMENT(E193)","v":"01-0K8904\n04-2K3604"},2,{"$f":"FETCHCOMMENT(G193)","v":"GRANITE CONSTRUCTION COMPANY\nGHILOTTI BROS., INC."},"1,4"]
["S&S TRUCKING",43,{"$f":"'[1]Construction Worksheet'!AE96","v":225150},"M",1,{"$f":"FETCHCOMMENT(E194)","v":"01-0F7104"},1,{"$f":"FETCHCOMMENT(G194)","v":"GHILOTTI CONSTRUCTION COMPANY, INC."},1]
["SEQUOIA CONSULTANTS",33,{"$f":"'[1]Construction Worksheet'!AE123","v":2127048.9699999997},"M",16,{"$f":"FETCHCOMMENT(E195)","v":"03-4H8704\n11-430384\n08-1J6104\n12-0R3134\n11-056404\n06-487404\n08-1K4004\n08-1K6904\n09-374704\n06-0Y1704\n07-347904\n07-351704\n12-0R3114\n07-369704\n08-0G8504\n11-430194"},9,{"$f":"FETCHCOMMENT(G195)","v":"O.C. JONES & SONS, INC.\nHAZARD CONSTRUCTION ENGR, LLC\nFBD VANGUARD CONSTRUCTION, INC.\nPETERSON-CHASE GENERAL ENGINEERING CONSTRUCTION, INC.\nGRANITE CONSTRUCTION COMPANY\nBEADOR CONSTRUCTION COMPANY, INC.\nPAPICH CONSTRUCTION COMPANY INC\nRASMUSSEN/VANGUARD\nC. A. RASMUSSEN, INC."},"3,6,7,8,9,11,12"]
["SIERRA GEOTECH DBE INC",-4142,{"$f":"'[1]Construction Worksheet'!AE138","v":276815.64},"M",5,{"$f":"FETCHCOMMENT(E196)","v":"03-0J01U4\n01-0F7104\n05-1H6504\n04-2Q6504\n05-1G9504"},5,{"$f":"FETCHCOMMENT(G196)","v":"MERCER-FRASER COMPANY\nGHILOTTI CONSTRUCTION COMPANY, INC.\nGRANITE CONSTRUCTION COMPANY\nBAY CITIES PAVING & GRADING, INC.\nGORDON N BALL INC"},"1,3,4,5"]
["TSI ENGINEERING, INC.",-4142,{"$f":"'[1]Construction Worksheet'!AE147","v":6124087},"M",1,{"$f":"FETCHCOMMENT(E197)","v":"08-1J3304\n"},1,{"$f":"FETCHCOMMENT(G197)","v":"TSI ENGINEERING, INC."},8]
[null,null,null,null,null,{"$f":"FETCHCOMMENT(E198)","v":""},null,{"$f":"FETCHCOMMENT(G198)","v":""}]
[null,null,null,null,null,{"$f":"FETCHCOMMENT(E199)","v":""},null,{"$f":"FETCHCOMMENT(G199)","v":""}]
[null,null,null,null,null,{"$f":"FETCHCOMMENT(E200)","v":""},null,{"$f":"FETCHCOMMENT(G200)","v":""}]
[null,null,null,null,null,{"$f":"FETCHCOMMENT(E201)","v":""},null,{"$f":"FETCHCOMMENT(G201)","v":""}]
[null,null,null,null,null,{"$f":"FETCHCOMMENT(E202)","v":""},null,{"$f":"FETCHCOMMENT(G202)","v":""}]
[]
["Asian Pacific","Column1","Dollars","M/F","# of Contracts","Contract #","# of Primes","Prime Name","Districts"]
["ACCU CONSTRUCTION",-4142,{"$f":"'[1]Construction Worksheet'!AM10","v":1452600},"M",3,{"$f":"FETCHCOMMENT(E205)","v":"07-348404\n07-356504\n07-356804"},1,{"$f":"FETCHCOMMENT(G205)","v":"ACCU CONSTRUCTION, INC."},7]
["ACE FENCE COMPANY",33,{"$f":"'[1]Construction Worksheet'!AI31","v":12936759.219999999},"F",19,{"$f":"FETCHCOMMENT(E206)","v":"11-430384\n06-0X250\n07-333604\n12-0R3134\n05-1Q03U4\n08-1J3004\n11-056404\n06-487404\n07-4X9704\n12-0K91U4\n12-0R3154\n08-1K6904\n06-0Y1704\n12-0R3114\n06-0W79U4\n08-0G8504\n11-430194\n07-346504\n06-0U2904"},9,{"$f":"FETCHCOMMENT(G206)","v":"HAZARD CONSTRUCTION ENGR, LLC\nGRANITE CONSTRUCTION COMPANY\nSULLY-MILLER CONTRACTING COMPANY\nPETERSON-CHASE GENERAL ENGINEERING CONSTRUCTION, INC.\nPAPICH CONSTRUCTION COMPANY, INC.\nBEADOR CONSTRUCTION COMPANY, INC.\nPOWELL CONSTRUCTORS, INC.\nSECURITY PAVING COMPANY, INC.\nGRIFFITH COMPANY"},"5,6,7,8,11,12"]
["ACE SWEEPERS & WATER TRUCKS",43,{"$f":"'[1]Construction Worksheet'!AM18","v":355618.5},"M",5,{"$f":"FETCHCOMMENT(E207)","v":"04-0K6404\n04-3J2604\n10-1L2804\n04-4G7804\n04-2Q6504"},2,{"$f":"FETCHCOMMENT(G207)","v":"O.C. JONES & SONS, INC.\nBAY CITIES PAVING & GRADING, INC."},"4,10"]
["BRIDGE RUBBER BEARING, LLC",-4142,{"$f":"'[1]Construction Worksheet'!AM29","v":112124.04000000001},"M",4,{"$f":"FETCHCOMMENT(E208)","v":"06-487404\n04-0P9304\n07-369704\n12-0K8704"},4,{"$f":"FETCHCOMMENT(G208)","v":"GRANITE CONSTRUCTION COMPANY\nBUGLER CONSTRUCTION, INC.\nC. A. RASMUSSEN, INC.\nORTIZ ENTERPRISES, INC."},"4,6,7,12"]
["CALIFORNIA PROFESSIONAL",-4142,{"$f":"'[1]Construction Worksheet'!AM49","v":8190204.2300000004},"M",9,{"$f":"FETCHCOMMENT(E209)","v":"07-4X9704\n08-1J2704\n12-0S7004\n07-350314\n07-350334\n08-1J4504\n08-1M7404\n06-0U2904\n08-1J3104"},7,{"$f":"FETCHCOMMENT(G209)","v":"BEADOR CONSTRUCTION COMPANY, INC.\nSULLY-MILLER CONTRACTING COMPANY\nAUTOBAHN CONSTRUCTION, INC.\nCROSSTOWN ELECTRICAL & DATA, INC.\nALL AMERICAN ASPHALT\nINTERSTATE CIVIL CONSTRUCTION\nGRIFFITH COMPANY"},"6,7,8,12"]
["FEHOKO CONCRETE INC",43,{"$f":"'[1]Construction Worksheet'!AM60","v":308789},"M",1,{"$f":"FETCHCOMMENT(E210)","v":"07-346104"},1,{"$f":"FETCHCOMMENT(G210)","v":"POWELL CONSTRUCTORS, INC."},7]
["DR. TRAFFIC CONTROL LLC",-4142,{"$f":"'[1]Construction Worksheet'!AM55","v":2941},"M",1,{"$f":"FETCHCOMMENT(E211)","v":"04-0K8004"},1,{"$f":"FETCHCOMMENT(G211)","v":"GHILOTTI BROS INC"},4]
["GLOBAL ROAD SEALING INC",-4142,{"$f":"'[1]Construction Worksheet'!AM91","v":2266388.9300000002},"M",13,{"$f":"FETCHCOMMENT(E212)","v":"12-0S1404\n01-0H6004\n07-333604\n07-377604\n08-1J7204\n12-0K91U4\n12-0R57U4\n04-2Q5504\n07-347904\n12-0R3114\n07-346304\n07-369704\n12-0S8404"},11,{"$f":"FETCHCOMMENT(G212)","v":"CHUMO CONSTRUCTION, INC.\nARGONAUT CONSTRUCTORS\nSULLY-MILLER CONTRACTING COMPANY\nPTM GENERAL ENGINEERING SERVICES, INC.\nGRANITE CONSTRUCTION COMPANY\nSECURITY PAVING COMPANY, INC.\nBAY CITIES PAVING & GRADING INC\nRASMUSSEN/VANGUARD\nBEADOR CONSTRUCTION COMPANY, INC.\nC. A. RASMUSSEN, INC.\nBAKER ELECTRIC AND RENEWABLES LLC"},"1,4,7,8,12"]
["GOLDEN STATE TRUCKING",43,{"$f":"'[1]Construction Worksheet'!AM67","v":661700},"M",2,{"$f":"FETCHCOMMENT(E213)","v":"04-0K6404\n04-3J2604\n"},1,{"$f":"FETCHCOMMENT(G213)","v":"O.C. JONES & SONS, INC."},4]
["IMRAE",-4142,{"$f":"'[1]Construction Worksheet'!AM99","v":46458},"M",1,{"$f":"FETCHCOMMENT(E214)","v":"01-0J8904"},1,{"$f":"FETCHCOMMENT(G214)","v":"MERCER-FRASER COMPANY"},1]
["IPS GRINDING AND GROOVING",-4142,{"$f":"'[1]Construction Worksheet'!AI61","v":514004.73},"F",6,{"$f":"FETCHCOMMENT(E215)","v":"07-370404\n07-351704\n08-1J4504\n08-1M7404\n07-369704\n12-0K8704"},5,{"$f":"FETCHCOMMENT(G215)","v":"GRIFFITH COMPANY\nC. A. RASMUSSEN, INC.\nALL AMERICAN ASPHALT\nINTERSTATE CIVIL CONSTRUCTION\nORTIZ ENTERPRISES, INC."},"7,8,12"]
["LEGACY REINFORCING STEEL LLC",-4142,{"$f":"'[1]Construction Worksheet'!AM107","v":1244574.6600000001},"M",3,{"$f":"FETCHCOMMENT(E216)","v":"11-056404\n08-1K4004\n07-346104"},3,{"$f":"FETCHCOMMENT(G216)","v":"HAZARD CONSTRUCTION ENGR, LLC\nBEADOR CONSTRUCTION COMPANY, INC.\nPOWELL CONSTRUCTORS, INC."},"7,8,11"]
["NITTA EROSION CONTROL",-4142,{"$f":"'[1]Construction Worksheet'!AI73","v":18699.2},"F",1,{"$f":"FETCHCOMMENT(E217)","v":"10-0Q2104"},1,{"$f":"FETCHCOMMENT(G217)","v":"BAY CITIES PAVING & GRADING, INC."},10]
["PRIME SUPPLY 1",33,{"$f":"'[1]Construction Worksheet'!AI89","v":517868.51},"F",9,{"$f":"FETCHCOMMENT(E218)","v":"11-430384\n05-1J7804\n11-056404\n01-0H6404\n12-0R57U4\n07-348204\n11-430194\n12-0K8704\n07-346504"},6,{"$f":"FETCHCOMMENT(G218)","v":"HAZARD CONSTRUCTION ENGR, LLC\nCALPORTLAND CONSTRUCTION\nWYLATTI RESOURCE MANAGEMENT, INC.\nSECURITY PAVING COMPANY, INC.\nBOSCO CONSTRUCTORS, INC.\nORTIZ ENTERPRISES INC"},"1,5,7,11,12"]
["S. KWOK ENGINEERS",-4142,{"$f":"'[1]Construction Worksheet'!AM118","v":183552},"M",6,{"$f":"FETCHCOMMENT(E219)","v":"04-2K7404\n04-0K8004\n04-2Q5504\n04-0P9304\n04-2Q6504\n04-2Q5204"},3,{"$f":"FETCHCOMMENT(G219)","v":"BAY CITIES PAVING & GRADING, INC.\nGHILOTTI BROS INC\nBUGLER CONSTRUCTION, INC."},4]
["TRAFFIC LOOPS CRACKFILLING INC",-4142,{"$f":"'[1]Construction Worksheet'!AI101","v":5987116},"F",6,{"$f":"FETCHCOMMENT(E220)","v":"11-430384\n08-1J6104\n12-0R57U4\n07-370404\n10-1L8704\n09-366804"},6,{"$f":"FETCHCOMMENT(G220)","v":"HAZARD CONSTRUCTION ENGR, LLC\nFBD VANGUARD CONSTRUCTION, INC.\nSECURITY PAVING COMPANY, INC.\nGRIFFITH COMPANY\nGRANITE CONSTRUCTION COMPANY\nPAPICH CONSTRUCTION COMPANY"},"7,8,9,10,11,12"]
["TRI COUNTIES TRUCKING",43,{"$f":"'[1]Construction Worksheet'!AI109","v":1228385},"F",3,{"$f":"FETCHCOMMENT(E221)","v":"03-4H8704\n04-0K6404\n03-1H1404"},2,{"$f":"FETCHCOMMENT(G221)","v":"O.C. JONES & SONS, INC.\nMARTIN BROTHERS CONSTRUCTION"},"3,4"]
["TRINITY FENCE COMPANY",-4142,{"$f":"'[1]Construction Worksheet'!AM127","v":1165954},"M",3,{"$f":"FETCHCOMMENT(E222)","v":"08-1K4004\n07-346104\n08-1J3104"},3,{"$f":"FETCHCOMMENT(G222)","v":"BEADOR CONSTRUCTION COMPANY, INC.\nPOWELL CONSTRUCTORS, INC.\nINTERSTATE CIVIL CONSTRUCTION"},"7,8"]
["VT ELECTRIC",-4142,{"$f":"'[1]Construction Worksheet'!AM136","v":2803881},"M",3,{"$f":"FETCHCOMMENT(E223)","v":"12-0K8704\n07-4V5404\n07-346104"},3,{"$f":"FETCHCOMMENT(G223)","v":"ORTIZ ENTERPRISES, INC.\nGENUINE ENGINEERING INC\nPOWELL CONSTRUCTORS, INC."},"7,12"]
["WANG TECHNOLOGY LLC",-4142,{"$f":"'[1]Construction Worksheet'!AI117","v":113952},"F",3,{"$f":"FETCHCOMMENT(E224)","v":"04-2K3604\n04-0AA624\n04-2Q5204"},3,{"$f":"FETCHCOMMENT(G224)","v":"GHILOTTI BROS., INC.\nGRANITE ROCK COMPANY\nBAY CITIES PAVING & GRADING, INC."},4]
["ZETH ENGINEERING ",-4142,{"$f":"'[1]Construction Worksheet'!AM145","v":3745820.2},"M",1,{"$f":"FETCHCOMMENT(E225)","v":"08-0G8504"},1,{"$f":"FETCHCOMMENT(G225)","v":"GRANITE CONSTRUCTION COMPANY"},8]
[null,null,null,null,null,{"$f":"FETCHCOMMENT(E226)","v":""},null,{"$f":"FETCHCOMMENT(G226)","v":""}]
[null,null,null,null,null,{"$f":"FETCHCOMMENT(E227)","v":""},null,{"$f":"FETCHCOMMENT(G227)","v":""}]
[]
["Other","Column1","Dollars","M/F","# of Contracts","Contract #","# of Primes","Prime Name","Districts"]
["ANDREW TEIXEIRA WATER TRUCK",43,{"$f":"'[1]Construction Worksheet'!AW11","v":58080},"M",1,{"$f":"FETCHCOMMENT(E230)","v":"04-2K3604"},1,{"$f":"FETCHCOMMENT(G230)","v":"GHILOTTI BROS., INC."},10]
[null,null,null,null,null,{"$f":"FETCHCOMMENT(E231)","v":""},null,{"$f":"FETCHCOMMENT(G231)","v":""}]
[]
["Non Minority Women","Column1","Dollars","M/F","# of Contracts","Contract #","# of Primes","Prime Name","Districts"]
["ACTION SWEEPING SERVICES INC",43,{"$f":"'[1]Construction Worksheet'!AQ16","v":282610},"F",5,{"$f":"FETCHCOMMENT(E234)","v":"03-4H8704\n06-487404\n10-1L8704\n01-0K8904\n03-3J9004"},3,{"$f":"FETCHCOMMENT(G234)","v":"O.C. JONES & SONS, INC.\nGRANITE CONSTRUCTION COMPANY\nPACIFIC INFRASTRUCTURE INC"},"1,3,6,10"]
["ALTA GROUP",-4142,{"$f":"'[1]Construction Worksheet'!AQ29","v":397500.2},"F",4,{"$f":"FETCHCOMMENT(E235)","v":"03-4H8704\n04-2K7404\n04-0K8004\n01-0K8904"},3,{"$f":"FETCHCOMMENT(G235)","v":"O.C. JONES & SONS, INC.\nBAY CITIES PAVING & GRADING, INC.\nGHILOTTI BROS INC"},"3,4"]
["AMERICAN TRAFFIC SAFETY",-4142,{"$f":"'[1]Construction Worksheet'!AQ35","v":22600},"F",1,{"$f":"FETCHCOMMENT(E236)","v":"10-1J8204"},1,{"$f":"FETCHCOMMENT(G236)","v":"GEORGE REED, INC."},10]
["AURORA INDSTRIAL HYGIENE",-4142,{"$f":"'[1]Construction Worksheet'!AQ41","v":1000},"F",1,{"$f":"FETCHCOMMENT(E237)","v":"02-3H6904"},1,{"$f":"FETCHCOMMENT(G237)","v":"DIG IT CONSTRUCTION, INC."},2]
["AVILA TRAFFIC SAFETY ",33,{"$f":"'[1]Construction Worksheet'!AQ57","v":4574952.5999999996},"F",6,{"$f":"FETCHCOMMENT(E238)","v":"05-1J7804\n04-1Q2004\n05-1H6504\n05-1K4504\n05-1K5104\n06-0U2904"},5,{"$f":"FETCHCOMMENT(G238)","v":"CALPORTLAND CONSTRUCTION\nCOLUMBIA ELECTRIC, INC.\nGRANITE CONSTRUCTION COMPANY\nCENTRAL COAST FINANCIAL GROUP, INC. DBA CCFG CONSTRUCTION\nGRIFFITH COMPANY"},"4,5,6"]
["BANCROFT CONSTRUCTION SERVICES",-4142,{"$f":"'[1]Construction Worksheet'!AQ62","v":1473800},"F",2,{"$f":"FETCHCOMMENT(E239)","v":"08-1K6904\n07-370404"},2,{"$f":"FETCHCOMMENT(G239)","v":"GRANITE CONSTRUCTION COMPANY\nGRIFFITH COMPANY"},"7,8"]
["BOUTHILLIER CONSTRUCTION, INC.",-4142,{"$f":"'[1]Construction Worksheet'!AQ68","v":882747},"F",1,{"$f":"FETCHCOMMENT(E240)","v":"01-0H6404"},1,{"$f":"FETCHCOMMENT(G240)","v":"WYLATTI RESOURCE MANAGEMENT, INC."},1]
["CAIN TRUCKING, INC.",33,{"$f":"'[1]Construction Worksheet'!AQ79","v":17150215},"F",4,{"$f":"FETCHCOMMENT(E241)","v":"06-487404\n06-0W79U4\n09-366804\n04-0AA624"},4,{"$f":"FETCHCOMMENT(G241)","v":"GRANITE CONSTRUCTION COMPANY\nSECURITY PAVING COMPANY, INC.\nPAPICH CONSTRUCTION COMPANY, INC.\nGRANITE ROCK COMPANY"},"4,6,9"]
["CAL SIGNAL CORP",-4142,{"$f":"'[1]Construction Worksheet'!AQ85","v":308348.88},"F",3,{"$f":"FETCHCOMMENT(E242)","v":"04-2Q8004\n05-1H6504\n05-1K6404"},2,{"$f":"FETCHCOMMENT(G242)","v":"GORDON N. BALL, INC.\nGRANITE CONSTRUCTION COMPANY"},"4,5"]
["CALIFORNIA TRAFFIC SAFETY",-4142,{"$f":"'[1]Construction Worksheet'!AQ93","v":684628.5},"F",1,{"$f":"FETCHCOMMENT(E243)","v":"04-0K6404"},1,{"$f":"FETCHCOMMENT(G243)","v":"O.C. JONES & SONS, INC."},4]
["CAROLINA CONSTRUCTION SUPPLIES",33,{"$f":"'[1]Construction Worksheet'!AQ99","v":486205.07},"F",3,{"$f":"FETCHCOMMENT(E244)","v":"12-0K91U4\n12-0R57U4\n07-351704"},3,{"$f":"FETCHCOMMENT(G244)","v":"GRANITE CONSTRUCTION COMPANY\nSECURITY PAVING COMPANY, INC.\nC. A. RASMUSSEN, INC."},"7, 12"]
["CAT TRACKING",-4142,{"$f":"'[1]Construction Worksheet'!AQ107","v":103312.55},"F",2,{"$f":"FETCHCOMMENT(E245)","v":"07-4X9704\n12-0S8404"},2,{"$f":"FETCHCOMMENT(G245)","v":"BEADOR CONSTRUCTION COMPANY, INC.\nBAKER ELECTRIC & RENEWABLES, LLC"},"7,12"]
["CES",-4142,{"$f":"'[1]Construction Worksheet'!AQ113","v":53760.76},"F",3,{"$f":"FETCHCOMMENT(E246)","v":"07-347904\n07-348204\n12-0S8404"},3,{"$f":"FETCHCOMMENT(G246)","v":"RASMUSSEN/VANGUARD\nBOSCO CONSTRUCTORS, INC.\nBAKER ELECTRIC & RENEWABLES, LLC"},"7,12"]
["CHAPCO CONSTRUCTION",-4142,{"$f":"'[1]Construction Worksheet'!AQ120","v":258700},"F",1,{"$f":"FETCHCOMMENT(E247)","v":"10-1K8404"},1,{"$f":"FETCHCOMMENT(G247)","v":"MOUNTAIN CASCADE, INC."},10]
["CMC TRAFFIC CONTROL",-4142,{"$f":"'[1]Construction Worksheet'!AQ133","v":1528234.66},"F",6,{"$f":"FETCHCOMMENT(E248)","v":"04-0K1004\n04-3J2604\n04-2Q8004\n04-1Q2004\n04-0Q2004\n04-0Q1304"},5,{"$f":"FETCHCOMMENT(G248)","v":"MIKE BROWN ELECTRIC CO.\nO.C. JONES & SONS, INC.\nGORDON N. BALL, INC.\nCOLUMBIA ELECTRIC, INC.\nGHILOTTI BROS., INC."},4]
["COLUMBIA ELECTRIC, INC.",-4142,{"$f":"'[1]Construction Worksheet'!AQ149","v":22989383},"F",7,{"$f":"FETCHCOMMENT(E249)","v":"04-1Q2004\n04-0K6404\n04-0P9204\n04-0Q2004\n04-2Q6504\n04-0Q1304\n04-0G3604"},5,{"$f":"FETCHCOMMENT(G249)","v":"COLUMBIA ELECTRIC, INC.\nO.C. JONES & SONS, INC.\nMYERS & SONS CONSTRUCTION, LLC.\nGHILOTTI BROS., INC.\nBAY CITIES PAVING & GRADING, INC."},4]
["CONSTRUCTION SURVEY, INC.",-4142,{"$f":"'[1]Construction Worksheet'!AQ163","v":16000},"F",1,{"$f":"FETCHCOMMENT(E250)","v":"04-2Q6104"},1,{"$f":"FETCHCOMMENT(G250)","v":"GRANITE ROCK COMPANY"},4]
["CONTERA CONSTRUCTION CORP",33,{"$f":"'[1]Construction Worksheet'!AQ155","v":2100400},"F",2,{"$f":"FETCHCOMMENT(E251)","v":"11-056404\n08-1K4004"},2,{"$f":"FETCHCOMMENT(G251)","v":"HAZARD CONSTRUCTION ENGR, LLC\nBEADOR CONSTRUCTION COMPANY, INC."},"8,11"]
["COOPER ENGINEERING",33,{"$f":"'[1]Construction Worksheet'!AQ174","v":3828691.9},"F",5,{"$f":"FETCHCOMMENT(E252)","v":"12-0S1404\n12-0R3134\n07-346304\n01-0K8904\n12-0U9104"},3,{"$f":"FETCHCOMMENT(G252)","v":"CHUMO CONSTRUCTION, INC.\nPETERSON-CHASE GENERAL ENGINEERING CONSTRUCTION, INC.\nGRANITE CONSTRUCTION COMPANY"},"1,7,12"]
["CRW ASSIST",-4142,{"$f":"'[1]Construction Worksheet'!AQ180","v":121270},"F",1,{"$f":"FETCHCOMMENT(E253)","v":"02-3H6904"},1,{"$f":"FETCHCOMMENT(G253)","v":"DIG IT CONSTRUCTION, INC."},2]
["DEES BURKE ENGINEERING",-4142,{"$f":"'[1]Construction Worksheet'!AQ213","v":9366876.9199999999},"F",24,{"$f":"FETCHCOMMENT(E254)","v":"05-1J7804\n04-2Q6104\n04-4K3004\n01-0J8904\n04-0P9204\n02-4H0704\n04-2Q8004\n05-1H6504\n05-1K4504\n12-0K91U4\n12-0R3154\n08-1K6904\n04-2Q5504\n07-370404\n12-0R32U4\n05-1J8604\n04-0P9304\n07-350314\n06-0W79U4\n09-366804\n07-346104\n08-1M0404\n08-1C07U4\n08-1J3104"},17,{"$f":"FETCHCOMMENT(G254)","v":"CALPORTLAND CONSTRUCTION\nGRANITE ROCK COMPANY\nGORDON N. BALL, INC.\nMERCER-FRASER COMPANY\nMYERS & SONS CONSTRUCTION LLC\nHAT CREEK CONSTRUCTION & MATERIALS, INC.\nGRANITE CONSTRUCTION COMPANY\nPOWELL CONSTRUCTORS, INC.\nBAY CITIES PAVING & GRADING INC\nGRIFFITH COMPANY\nR.J. NOBLE COMPANY\nPAPICH CONSTRUCTION COMPANY\nBUGLER CONSTRUCTION, INC.\nCROSSTOWN ELECTRICAL & DATA, INC.\nSECURITY PAVING COMPANY, INC.\nPOWELL CONSTRUCTORS, INC.\nINTERSTATE CIVIL CONSTRUCTION"},"1,2,4,5,6,7,8,9,12"]
["DILLARD ENVIRONMENTAL SERVICES",43,{"$f":"'[1]Construction Worksheet'!AQ226","v":30544},"F",1,{"$f":"FETCHCOMMENT(E255)","v":"03-3J9004"},1,{"$f":"FETCHCOMMENT(G255)","v":"PACIFIC INFRASTRUCTURE INC"},3]
["DIVERSIFIED LANDSCAPE CO",-4142,{"$f":"'[1]Construction Worksheet'!AQ262","v":12311210.91},"F",18,{"$f":"FETCHCOMMENT(E256)","v":"11-430384\n07-333604\n08-1J6104\n08-1J3004\n08-1J2704\n08-1J7204\n12-0K91U4\n08-1K6904\n07-332304\n07-346804\n12-0R32U4\n07-350334\n08-1M7404\n12-0R3114\n07-346304\n11-430194\n12-0S8404"},12,{"$f":"FETCHCOMMENT(G256)","v":"HAZARD CONSTRUCTION ENGR, LLC\nSULLY-MILLER CONTRACTING COMPANY\nFBD VANGUARD CONSTRUCTION, INC.\nGRANITE CONSTRUCTION COMPANY\nTORO ENTERPRISES INC\nR.J. NOBLE COMPANY\nCROSSTOWN ELECTRICAL & DATA, INC.\nINTERSTATE CIVIL CONSTRUCTION\nBEADOR CONSTRUCTION COMPANY, INC.\nCHUMO CONSTRUCTION\nBAKER ELECTRIC & RENEWABLES, LLC\nPOWELL CONSTRUCTORS, INC."},"7,8,11,12"]
["DOUBLE E TRANSPORTATION INC",43,{"$f":"'[1]Construction Worksheet'!AQ270","v":4567492.92},"F",5,{"$f":"FETCHCOMMENT(E257)","v":"05-1Q03U4\n09-374704\n05-1J8604\n06-0Y1704\n06-0U2904"},2,{"$f":"FETCHCOMMENT(G257)","v":"PAPICH CONSTRUCTION COMPANY, INC.\nGRIFFITH COMPANY"},"5,6,9"]
["E. AMEZCUA TRUCKING, INC.",43,{"$f":"'[1]Construction Worksheet'!AQ276","v":139780},"F",1,{"$f":"FETCHCOMMENT(E258)","v":"05-1K6404"},1,{"$f":"FETCHCOMMENT(G258)","v":"GRANITE CONSTRUCTION COMPANY"},5]
["ETA HUMBOLDT",-4142,{"$f":"'[1]Construction Worksheet'!AQ281","v":291176.25},"F",2,{"$f":"FETCHCOMMENT(E259)","v":"01-0H6404\n01-0J2104"},2,{"$f":"FETCHCOMMENT(G259)","v":"WYLATTI RESOURCE MANAGEMENT, INC.\nMERCER-FRASER COMPANY"},1]
["FOREFRONT DEEP FOUNDATIONS INC",-4142,{"$f":"'[1]Construction Worksheet'!AQ287","v":266470.52},"F",1,{"$f":"FETCHCOMMENT(E260)","v":"05-1J7804\n"},1,{"$f":"FETCHCOMMENT(G260)","v":"CALPORTLAND CONSTRUCTION"},5]
["GALLAWAY ENTERPRISES",-4142,{"$f":"'[1]Construction Worksheet'!AQ310","v":16205},"F",4,{"$f":"FETCHCOMMENT(E261)","v":"03-4H8704\n02-4H0604\n02-0J8504\n03-3J9004"},4,{"$f":"FETCHCOMMENT(G261)","v":"O.C. JONES & SONS, INC.\nHAT CREEK CONSTRUCTION & MATERIALS, INC.\nTULLIS INC\nPACIFIC INFRASTRUCTURE INC"},"2,3"]
["GALLION SWEEPING CO",43,{"$f":"'[1]Construction Worksheet'!AQ321","v":1359767.2},"F",4,{"$f":"FETCHCOMMENT(E262)","v":"07-370404\n07-347904\n07-351704\n07-369704"},3,{"$f":"FETCHCOMMENT(G262)","v":"GRIFFITH COMPANY\nRASMUSSEN/VANGUARD\nC. A. RASMUSSEN, INC."},7]
["GDS INDUSTRIES INC",33,{"$f":"'[1]Construction Worksheet'!AQ329","v":1120759.1200000001},"F",3,{"$f":"FETCHCOMMENT(E263)","v":"04-0P7604\n08-0G8504\n04-2Q5204"},3,{"$f":"FETCHCOMMENT(G263)","v":"ST. FRANCIS ELECTRIC, LLC.\nGRANITE CONSTRUCTION COMPANY\nBAY CITIES PAVING & GRADING, INC."},"4,8"]
["GEM GRIFFIN ENGINEERING",-4142,{"$f":"'[1]Construction Worksheet'!AQ335","v":24700},"F",1,{"$f":"FETCHCOMMENT(E264)","v":"12-0K8704"},1,{"$f":"FETCHCOMMENT(G264)","v":"ORTIZ ENTERPRISES INC"},12]
["GENUINE ENGINEERING INC",-4142,{"$f":"'[1]Construction Worksheet'!AQ343","v":808152.5},"F",1,{"$f":"FETCHCOMMENT(E265)","v":"07-4V5404"},1,{"$f":"FETCHCOMMENT(G265)","v":"GENUINE ENGINEERING INC"},7]
["GREGORY CONSTRUCTION EQUIPMENT",43,{"$f":"'[1]Construction Worksheet'!AQ360","v":209920},"F",3,{"$f":"FETCHCOMMENT(E266)","v":"03-0J01U4\n02-3H6904\n10-0Q2104"},3,{"$f":"FETCHCOMMENT(G266)","v":"MERCER-FRASER COMPANY\nDIG IT CONSTRUCTION, INC.\nBAY CITIES PAVING & GRADING, INC."},"2,3,10"]
["HARD WAY TRANSPORTATION INC",-4142,{"$f":"'[1]Construction Worksheet'!AQ368","v":2857136.1},"F",2,{"$f":"FETCHCOMMENT(E267)","v":"07-370404\n10-1L8704"},2,{"$f":"FETCHCOMMENT(G267)","v":"GRIFFITH COMPANY\nGRANITE CONSTRUCTION COMPANY"},"7,10"]
["J & M LAND RESTORATION INC",-4142,{"$f":"'[1]Construction Worksheet'!AQ389","v":3844506.52},"F",10,{"$f":"FETCHCOMMENT(E268)","v":"05-1J7804\n02-4H0604\n05-1Q03U4\n06-487404\n09-374704\n09-379104\n06-0Y1704\n06-0W79U4\n03-0J5604\n08-1M0404"},8,{"$f":"FETCHCOMMENT(G268)","v":"CALPORTLAND CONSTRUCTION\nHAT CREEK CONSTRUCTION & MATERIALS, INC.\nPAPICH CONSTRUCTION COMPANY, INC.\nGRANITE CONSTRUCTION COMPANY\nROAD AND HIGHWAY BUILDERS LLC\nSECURITY PAVING COMPANY, INC.\nMERCER-FRASER COMPANY\nINTERSTATE CIVIL CONSTRUCTION"},"2,3,5,6,8,9"]
["JARRETT FOUNDATIONS",33,{"$f":"'[1]Construction Worksheet'!AQ396","v":299297.5},"F",1,{"$f":"FETCHCOMMENT(E269)","v":"01-0J8904"},1,{"$f":"FETCHCOMMENT(G269)","v":"MERCER-FRASER COMPANY"},1]
["K&K CONSTRUCTION SUPPLY, INC.",33,{"$f":"'[1]Construction Worksheet'!AQ408","v":967343.67999999993},"F",4,{"$f":"FETCHCOMMENT(E270)","v":"08-1J6104\n06-487404\n07-347904\n04-0AA624"},4,{"$f":"FETCHCOMMENT(G270)","v":"FBD VANGUARD CONSTRUCTION, INC.\nGRANITE CONSTRUCTION COMPANY\nRASMUSSEN/VANGUARD\nGRANITE ROCK COMPANY"},"6,7,8"]
["KRITZ EXCAVATING & TRUCKING",-4142,{"$f":"'[1]Construction Worksheet'!AQ415","v":40426.400000000001},"F",1,{"$f":"FETCHCOMMENT(E271)","v":"05-1N3404"},1,{"$f":"FETCHCOMMENT(G271)","v":"SOUZA ENGINEERING CONTRACTING, INC. DBA SOUZA CONSTRUCTION"},5]
["KUCK TRUCKING",-4142,{"$f":"'[1]Construction Worksheet'!AQ425","v":1216600},"F",1,{"$f":"FETCHCOMMENT(E272)","v":"09-379104"},1,{"$f":"FETCHCOMMENT(G272)","v":"ROAD AND HIGHWAY BUILDERS LLC"},9]
["LD INNOVATIONS",33,{"$f":"'[1]Construction Worksheet'!AQ432","v":1107975.5999999999},"F",2,{"$f":"FETCHCOMMENT(E273)","v":"10-1K8404\n04-2Q5204"},2,{"$f":"FETCHCOMMENT(G273)","v":"MOUNTAIN CASCADE, INC.\nBAY CITIES PAVING & GRADING, INC."},"4,10"]
["LINDY'S COLD PLANNING",-4142,{"$f":"'[1]Construction Worksheet'!AQ455","v":9220971.25},"F",11,{"$f":"FETCHCOMMENT(E274)","v":"07-333604\n08-1J6104\n08-1J2704\n08-1J7204\n08-1K4004\n12-0K91U4\n08-1K6904\n07-347904\n07-351704\n07-369704\n08-0G8504"},6,{"$f":"FETCHCOMMENT(G274)","v":"SULLY-MILLER CONTRACTING COMPANY\nFBD VANGUARD CONSTRUCTION, INC.\nBEADOR CONSTRUCTION COMPANY, INC.\nGRANITE CONSTRUCTION COMPANY\nRASMUSSEN/VANGUARD\nC. A. RASMUSSEN, INC."},"7,8,12"]
["LMS TRANSPORT",33,{"$f":"'[1]Construction Worksheet'!AQ477","v":13146566.65},"F",16,{"$f":"FETCHCOMMENT(E275)","v":"05-1J7804\n12-0S1404\n07-333604\n08-1J6104\n05-1K4504\n08-1J2704\n08-1J7204\n08-1K4004\n08-1K6904\n07-370404\n09-379104\n12-0R32U4\n07-347904\n07-351704\n07-369704\n12-0K8704"},12,{"$f":"FETCHCOMMENT(G275)","v":"CALPORTLAND CONSTRUCTION\nCHUMO CONSTRUCTION, INC.\nSULLY-MILLER CONTRACTING COMPANY\nFBD VANGUARD CONSTRUCTION, INC.\nBEADOR CONSTRUCTION COMPANY, INC.\nGRANITE CONSTRUCTION COMPANY\nGRIFFITH COMPANY \nROAD AND HIGHWAY BUILDERS LLC\nR.J. NOBLE COMPANY\nRASMUSSEN/VANGUARD\nC. A. RASMUSSEN, INC.\nORTIZ ENTERPRISE INC"},"5,7,8,9,12"]
["LOGISTICAL ENTERPRISES",33,{"$f":"'[1]Construction Worksheet'!AQ483","v":128019.18},"F",1,{"$f":"FETCHCOMMENT(E276)","v":"02-1J75U4"},1,{"$f":"FETCHCOMMENT(G276)","v":"HAT CREEK CONSTRUCTION & MATERIALS, INC."},2]
["LOWERS WELDING & FABRICATION",-4142,{"$f":"'[1]Construction Worksheet'!AQ489","v":52477.88},"F",1,{"$f":"FETCHCOMMENT(E277)","v":"01-0H6404"},1,{"$f":"FETCHCOMMENT(G277)","v":"WYLATTI RESOURCE MANAGEMENT, INC."},1]
["M B PROFESSIONAL",-4142,{"$f":"'[1]Construction Worksheet'!AQ497","v":380961},"F",5,{"$f":"FETCHCOMMENT(E278)","v":"07-347904\n07-351704\n07-346304\n07-346104\n08-1J3104"},5,{"$f":"FETCHCOMMENT(G278)","v":"RASMUSSEN/VANGUARD\nC. A. RASMUSSEN, INC.\nCHUMO CONSTRUCTION, INC.\nPOWELL CONSTRUCTORS, INC.\nINTERSTATE CIVIL CONSTRUCTION"},"7,8"]
["MCW TRAFFIC CONTROL",-4142,{"$f":"'[1]Construction Worksheet'!AQ509","v":1636336},"F",7,{"$f":"FETCHCOMMENT(E279)","v":"03-4H8704\n01-0F7104\n02-0K6404\n10-1L8704\n04-0P9304\n04-2K3604\n05-1G9504"},6,{"$f":"FETCHCOMMENT(G279)","v":"O.C. JONES & SONS, INC.\nGHILOTTI CONSTRUCTION COMPANY, INC.\nMCCUEN CONSTRUCTION, INC.\nGRANITE CONSTRUCTION COMPANY\nBUGLER CONSTRUCTION, INC.\nGORDON N BALL"},"1,2,3,4,5,10"]
["MOUNTAINVIEW BIOLOGICAL",-4142,{"$f":"'[1]Construction Worksheet'!AQ519","v":741500},"F",5,{"$f":"FETCHCOMMENT(E280)","v":"08-1K4004\n08-1J4504\n08-1M7404\n08-0G8504\n08-1J3104"},4,{"$f":"FETCHCOMMENT(G280)","v":"BEADOR CONSTRUCTION COMPANY, INC.\nALL AMERICAN ASPHALT\nINTERSTATE CIVIL CONSTRUCTION\nGRANITE CONSTRUCTION COMPANY"},8]
["NICHOLLS TRUCKING INC",43,{"$f":"'[1]Construction Worksheet'!AQ531","v":910000},"F",2,{"$f":"FETCHCOMMENT(E281)","v":"01-0J8904\n01-0J2104"},1,{"$f":"FETCHCOMMENT(G281)","v":"MERCER-FRASER COMPANY"},1]
["NORTH STATE GENERAL ENGINEERING",-4142,{"$f":"'[1]Construction Worksheet'!AQ536","v":584727},"F",2,{"$f":"FETCHCOMMENT(E282)","v":"03-1H1404\n03-3H8304"},2,{"$f":"FETCHCOMMENT(G282)","v":"MARTIN BROTHERS CONSTRUCTION\nPACIFIC INFRASTRUCTURE CONSTRUCTION, LLC"},3]
["PAVEMENT MANAGEMENT",-4142,{"$f":"'[1]Construction Worksheet'!AQ544","v":204975},"F",3,{"$f":"FETCHCOMMENT(E283)","v":"02-3H6904\n07-370404\n06-0U2904"},2,{"$f":"FETCHCOMMENT(G283)","v":"DIG IT CONSTRUCTION, INC.\nGRIFFITH COMPANY"},"2,6,7"]
["PAYCO SPECIALTIES",-4142,{"$f":"'[1]Construction Worksheet'!AQ550","v":4196380.59},"F",3,{"$f":"FETCHCOMMENT(E284)","v":"11-430384\n11-056404\n11-430194"},1,{"$f":"FETCHCOMMENT(G284)","v":"HAZARD CONSTRUCTION ENGR, LLC"},11]
["PC&N CONSTRUCTION JINC",33,{"$f":"'[1]Construction Worksheet'!AQ562","v":1820947.72},"F",7,{"$f":"FETCHCOMMENT(E285)","v":"04-0K6404\n04-0P9204\n04-0P7604\n04-2Q5504\n04-2K3604\n04-0Q1304\n03-3J9004"},6,{"$f":"FETCHCOMMENT(G285)","v":"O.C. JONES & SONS, INC.\nMYERS & SONS CONSTRUCTION, LLC.\nST. FRANCIS ELECTRIC, LLC.\nBAY CITIES PAVING & GRADING INC\nGHILOTTI BROS., INC.\nPACIFIC INFRASTRUCTURE INC"},"3,4"]
["PLAYA SAFETY, INC.",-4142,{"$f":"'[1]Construction Worksheet'!AQ570","v":110581.84},"F",2,{"$f":"FETCHCOMMENT(E286)","v":"08-1J6104\n07-346504"},2,{"$f":"FETCHCOMMENT(G286)","v":"FBD VANGUARD CONSTRUCTION, INC.\nSECURITY PAVING COMPANY, INC."},"7,8"]
["QUALITY HYDROSEEDING",33,{"$f":"'[1]Construction Worksheet'!AQ578","v":99566.399999999994},"F",1,{"$f":"FETCHCOMMENT(E287)","v":"08-0G8504"},1,{"$f":"FETCHCOMMENT(G287)","v":"GRANITE CONSTRUCTION COMPANY"},8]
["R DUGAN CONSTRUCTION",-4142,{"$f":"'[1]Construction Worksheet'!AQ589","v":341831},"F",1,{"$f":"FETCHCOMMENT(E288)","v":"11-430194"},1,{"$f":"FETCHCOMMENT(G288)","v":"HAZARD CONSTRUCTION COMPANY DBA HAZARD CONSRUCTION ENGR LLC"},11]
["RCR TRAFFIC SPECIALIST",33,{"$f":"'[1]Construction Worksheet'!AQ597","v":21913.919999999998},"F",1,{"$f":"FETCHCOMMENT(E289)","v":"07-332304"},1,{"$f":"FETCHCOMMENT(G289)","v":"TORO ENTERPRISES INC"},7]
["RDL EQUIPMENT",33,{"$f":"'[1]Construction Worksheet'!AQ605","v":380000},"F",1,{"$f":"FETCHCOMMENT(E290)","v":"12-0K91U4"},1,{"$f":"FETCHCOMMENT(G290)","v":"GRANITE CONSTRUCTION COMPANY"},12]
["ROBERTS OIL CORPORATION",33,{"$f":"'[1]Construction Worksheet'!AQ611","v":979238.40000000002},"F",2,{"$f":"FETCHCOMMENT(E291)","v":"11-430384\n12-0R57U4"},2,{"$f":"FETCHCOMMENT(G291)","v":"HAZARD CONSTRUCTION ENGR, LLC\nSECURITY PAVING COMPANY, INC."},"11,12"]
["ROLL N ROCK CONSTRUCTION",-4142,{"$f":"'[1]Construction Worksheet'!AQ634","v":7944737.3700000001},"F",10,{"$f":"FETCHCOMMENT(E292)","v":"03-0J01U4\n01-0H6004\n02-3H6904\n01-0J8904\n03-1H1404\n03-3H8304\n01-0J2104\n02-2J2204\n03-0J5604\n02-0J8504"},7,{"$f":"FETCHCOMMENT(G292)","v":"MERCER-FRASER COMPANY\nARGONAUT CONSTRUCTORS\nDIG IT CONSTRUCTION, INC.\nMARTIN BROTHERS CONSTRUCTION\nPACIFIC INFRASTRUCTURE CONSTRUCTION, LLC\nHIGHWAY SPECIALTY COMPANY, INC.\nTULLIS INC"},"1,2,3"]
["ROUCH REBAR INC",-4142,{"$f":"'[1]Construction Worksheet'!AQ640","v":77015},"F",1,{"$f":"FETCHCOMMENT(E293)","v":"08-1M0404"},1,{"$f":"FETCHCOMMENT(G293)","v":"INTERSTATE CIVIL CONSTRUCTION"},8]
["S.A.M. RHODES ",-4142,{"$f":"'[1]Construction Worksheet'!AQ664","v":608137},"F",11,{"$f":"FETCHCOMMENT(E294)","v":"03-0J01U4\n02-4H0604\n01-0J8904\n02-4H03U4\n02-1J75U4\n02-4H0104\n02-4H0704\n05-1H6504\n01-0K8904\n01-0J2104\n02-0J8504"},4,{"$f":"FETCHCOMMENT(G294)","v":"MERCER-FRASER COMPANY\nHAT CREEK CONSTRUCTION & MATERIALS, INC.\nGRANITE CONSTRUCTION COMPANY\nTULLIS INC"},"1,2,3,5"]
["SCHOTKA CONSTRUCTION",-4142,{"$f":"'[1]Construction Worksheet'!AQ671","v":136280},"F",2,{"$f":"FETCHCOMMENT(E295)","v":"04-0K8004\n04-0AA624"},2,{"$f":"FETCHCOMMENT(G295)","v":"GHILOTTI BROS INC\nGRANITE ROCK COMPANY"},4]
["SELL LUMBER CORPORATION",33,{"$f":"'[1]Construction Worksheet'!AQ682","v":10621.28},"F",1,{"$f":"FETCHCOMMENT(E296)","v":"02-2J2204"},1,{"$f":"FETCHCOMMENT(G296)","v":"HIGHWAY SPECIALTY COMPANY, INC."},2]
["SHASTA PRECAST, INC.",-4142,{"$f":"'[1]Construction Worksheet'!AQ697","v":368506.96},"F",5,{"$f":"FETCHCOMMENT(E297)","v":"02-1J75U4\n02-4H0704\n04-0K8004\n10-1L8704\n04-2K3604"},3,{"$f":"FETCHCOMMENT(G297)","v":"HAT CREEK CONSTRUCTION & MATERIALS, INC.\nGHILOTTI BROS INC\nGRANITE CONSTRUCTION COMPANY"},"1,2,4,10"]
["SPECS CIVIL SOLUTIONS ",-4142,{"$f":"'[1]Construction Worksheet'!AQ704","v":97750.8},"F",1,{"$f":"FETCHCOMMENT(E298)","v":"09-366804"},1,{"$f":"FETCHCOMMENT(G298)","v":"PAPICH CONSTRUCTION COMPANY, INC."},9]
["SPRING RIVERS ECOLOGICAL",-4142,{"$f":"'[1]Construction Worksheet'!AQ722","v":74400},"F",4,{"$f":"FETCHCOMMENT(E299)","v":"02-3H6904\n02-4H03U4\n02-1J75U4\n02-4H0704"},2,{"$f":"FETCHCOMMENT(G299)","v":"DIG IT CONSTRUCTION, INC.\nHAT CREEK CONSTRUCTION & MATERIALS, INC."},2]
["SUMMIT WEST ENVIRONMENTAL",-4142,{"$f":"'[1]Construction Worksheet'!AQ753","v":33070},"F",1,{"$f":"FETCHCOMMENT(E300)","v":"01-0K8904"},1,{"$f":"FETCHCOMMENT(G300)","v":"GRANITE CONSTRUCTION COMPANY"},1]
["SUPER SEAL & STRIPE ",-4142,{"$f":"'[1]Construction Worksheet'!AQ740","v":2221941.5},"F",7,{"$f":"FETCHCOMMENT(E301)","v":"05-1J7804\n05-1H6504\n05-1K4504\n05-1K5104\n05-1K6404\n09-374704\n04-0P9304"},5,{"$f":"FETCHCOMMENT(G301)","v":"CALPORTLAND CONSTRUCTION\nGRANITE CONSTRUCTION COMPANY\nCENTRAL COAST FINANCIAL GROUP, INC. DBA CCFG CONSTRUCTION\nPAPICH CONSTRUCTION COMPANY INC\nBUGLER CONSTRUCTION, INC."},"4,5,9"]
["SUPERIOR HYDROSEEDING",-4142,{"$f":"'[1]Construction Worksheet'!AQ747","v":10212},"F",1,{"$f":"FETCHCOMMENT(E302)","v":"05-1N3404"},1,{"$f":"FETCHCOMMENT(G302)","v":"SOUZA ENGINEERING CONTRACTING, INC. DBA SOUZA CONSTRUCTION"},5]
["T & S DVBE",33,{"$f":"'[1]Construction Worksheet'!AQ770","v":13490773.609999999},"F",13,{"$f":"FETCHCOMMENT(E303)","v":"03-4H8704\n02-3H6904\n02-4H0604\n02-4H03U4\n03-2J5904\n01-0H6404\n02-1J75U4\n02-4H0104\n02-4H0704\n10-1L2804\n04-4G7804\n01-0K8904\n01-0H6504"},6,{"$f":"FETCHCOMMENT(G303)","v":"O.C. JONES & SONS, INC.\nDIG IT CONSTRUCTION, INC.\nHAT CREEK CONSTRUCTION & MATERIALS, INC.\nSTUDEBAKER ELECTRIC, INC.\nGRANITE CONSTRUCTION COMPANY\nWAHLUND CONSTRUCTION, INC."},"1,2,3,4"]
["TALL TREE ENGINEERING",-4142,{"$f":"'[1]Construction Worksheet'!AQ775","v":70840},"F",1,{"$f":"FETCHCOMMENT(E304)","v":"01-0H6404"},1,{"$f":"FETCHCOMMENT(G304)","v":"WYLATTI RESOURCE MANAGEMENT, INC."},1]
["TEK SERVICES",33,{"$f":"'[1]Construction Worksheet'!AQ782","v":700478.01},"F",1,{"$f":"FETCHCOMMENT(E305)","v":"07-333604"},1,{"$f":"FETCHCOMMENT(G305)","v":"SULLY-MILLER CONTRACTING COMPANY"},7]
["TRI VALLEY WATER TRUCKS, INC.",33,{"$f":"'[1]Construction Worksheet'!AQ788","v":2160280},"F",2,{"$f":"FETCHCOMMENT(E306)","v":"04-2Q6104\n04-0AA624"},1,{"$f":"FETCHCOMMENT(G306)","v":"GRANITE ROCK COMPANY"},4]
["TUNGSTEN ENGINEERING",43,{"$f":"'[1]Construction Worksheet'!AQ798","v":4833634.5},"F",4,{"$f":"FETCHCOMMENT(E307)","v":"02-4H03U4\n02-1J75U4\n02-4H0704\n03-1H1404"},2,{"$f":"FETCHCOMMENT(G307)","v":"HAT CREEK CONSTRUCTION & MATERIALS, INC.\nMARTIN BROTHERS CONSTRUCTION\n"},"2,3"]
["TYRRELL RESOURCES",-4142,{"$f":"'[1]Construction Worksheet'!AQ816","v":2700673.85},"F",14,{"$f":"FETCHCOMMENT(E308)","v":"02-4H0604\n01-0F7104\n02-0K6404\n02-4H03U4\n02-1J75U4\n03-3H8304\n06-487404\n10-1L2804\n01-0K8904\n04-2K3604\n10-1H7004\n10-1K8404\n03-0J5604\n02-0J8504"},9,{"$f":"FETCHCOMMENT(G308)","v":"HAT CREEK CONSTRUCTION & MATERIALS, INC.\nGHILOTTI CONSTRUCTION COMPANY, INC.\nMCCUEN CONSTRUCTION, INC.\nGRANITE CONSTRUCTION COMPANY\nO.C. JONES & SONS, INC.\nPACIFIC INFRASTRUCTURE CONSTRUCTION, LLC\nMOUNTAIN CASCADE INC\nMERCER-FRASER COMPANY\nTULLIS INC"},"1,2,3,6,10"]
["WATER COMPONENTS & BUILDING ",33,{"$f":"'[1]Construction Worksheet'!AQ823","v":48072.58},"F",2,{"$f":"FETCHCOMMENT(E309)","v":"04-0K8004\n04-2K3604"},1,{"$f":"FETCHCOMMENT(G309)","v":"GHILOTTI BROS INC"},4]
["WEST COAST WATER & TRUCKING",43,{"$f":"'[1]Construction Worksheet'!AQ837","v":3179080},"F",5,{"$f":"FETCHCOMMENT(E310)","v":"03-4H8704\n03-0J01U4\n03-3H8304\n03-0J5604\n03-3J9004"},3,{"$f":"FETCHCOMMENT(G310)","v":"O.C. JONES & SONS, INC.\nMERCER-FRASER COMPANY\nPACIFIC INFRASTRUCTURE CONSTRUCTION, LLC"},3]
[null,null,null,null,null,{"$f":"FETCHCOMMENT(E311)","v":""}]
[null,null,null,null,null,{"$f":"FETCHCOMMENT(E312)","v":""}]
[null,null,null,null,null,{"$f":"FETCHCOMMENT(E313)","v":""}]
[null,null,null,null,null,{"$f":"FETCHCOMMENT(E314)","v":""}]
[null,{"$f":"COUNTIF(B30:B314, \"33\")","v":46}]
[null,{"$f":"COUNTIF(B30:B314, \"43\")","v":48}]
[null,{"$f":"COUNTIF(B30:B314, \"-4142\")","v":161}]
["Prime Name",null,"# of Contracts","Contract #","Prime Name","# of Contracts","Contract #","Prime Name","# of Contracts","Contract #"]
["ACCU CONSTRUCTION, INC.",null,3,{"$f":"FETCHCOMMENT(C319)","v":"07-348404\n07-356504\n07-356804\n"},"GHILOTTI BROS INC",3,{"$f":"FETCHCOMMENT(F319)","v":"04-0K8004\n04-0Q2004\n04-2K3604"},"POLO ENGINEERING, INC.",1,{"$f":"FETCHCOMMENT(I319)","v":"07-4P8504"}]
["ALL AMERICAN ASPHALT",null,1,{"$f":"FETCHCOMMENT(C320)","v":"08-1J4504"},"GHILOTTI CONSTRUCTION COMPANY INC",1,{"$f":"FETCHCOMMENT(F320)","v":"01-0F7104"},"POWELL CONSTRUCTORS, INC.",2,{"$f":"FETCHCOMMENT(I320)","v":"12-0R3154\n07-346104"}]
["AMERICA PACIFIC CONSTRUCTION, INC.",null,1,{"$f":"FETCHCOMMENT(C321)","v":"08-1P2804"},"GORDON N. BALL, INC.",3,{"$f":"FETCHCOMMENT(F321)","v":"04-4K3004\n04-2Q8004\n05-1G9504"},"PRECISION GRADE, INC.",1,{"$f":"FETCHCOMMENT(I321)","v":"05-1H6914"}]
["ARGONAUT CONSTRUCTORS",null,1,{"$f":"FETCHCOMMENT(C322)","v":"01-0H6004"},"GRANITE CONSTRUCTION COMPANY",10,{"$f":"FETCHCOMMENT(F322)","v":"06-0X2504\n05-1H6504\n05-1K6404\n06-487404\n08-1K6904\n12-0K91U4\n10-1L8704\n08-0G8504\n01-0K8904\n07-355204"},"PTM GENERAL ENGINEERING SERVICES, INC.",2,{"$f":"FETCHCOMMENT(I322)","v":"07-377604\n12-0U9204"}]
["AUTOBAHN CONSTRUCTION, INC.",null,1,{"$f":"FETCHCOMMENT(C323)","v":"12-0S7004"},"GRANITE ROCK COMPANY",2,{"$f":"FETCHCOMMENT(F323)","v":"04-2Q6104\n04-0AA624"},"QUIMU CONTRACTING, INC.",1,{"$f":"FETCHCOMMENT(I323)","v":"03-3J9104"}]
["BAKER ELECTRIC & RENEWABLES, LLC",null,1,{"$f":"FETCHCOMMENT(C324)","v":"12-0S8404"},"GRIFFITH COMPANY",3,{"$f":"FETCHCOMMENT(F324)","v":"07-370404\n06-0U2904\n08-1C07U4"},"R.J. NOBLE COMPANY",1,{"$f":"FETCHCOMMENT(I324)","v":"12-0R32U4"}]
["BAY CITIES PAVING & GRADING, INC.",null,6,{"$f":"FETCHCOMMENT(C325)","v":"10-0Q2104\n04-2K7404\n04-2Q5504\n04-2Q6504\n04-2Q5204\n04-0G3604"},"HAT CREEK CONSTRUCTION & MATERIALS, INC.",5,{"$f":"FETCHCOMMENT(F325)","v":"02-4H0604\n02-4H03U4\n02-1J75U4\n02-4H0104\n02-4H0704"},"RASMUSSEN/VANGUARD",1,{"$f":"FETCHCOMMENT(I325)","v":"07-347904"}]
["BEADOR CONSTRUCTION COMPANY, INC.",null,3,{"$f":"FETCHCOMMENT(C326)","v":"07-4X9704\n08-1K4004\n12-0R3114"},"HAZARD CONSTRUCTION ENGR, LLC",3,{"$f":"FETCHCOMMENT(F326)","v":"11-430384\n11-056404\n11-430194"},"ROAD AND HIGHWAY BUILDERS LLC",1,{"$f":"FETCHCOMMENT(I326)","v":"09-379104"}]
["BOSCO CONSTRUCTORS, INC.",null,1,{"$f":"FETCHCOMMENT(C327)","v":"07-348204"},"HIGH-LIGHT ELECTRIC INC",1,{"$f":"FETCHCOMMENT(F327)","v":"06-1F1804"},"SB GENERAL ENGINEERING INC",1,{"$f":"FETCHCOMMENT(I327)","v":"09-387704"}]
["BUGLER CONSTRUCTION, INC.",null,1,{"$f":"FETCHCOMMENT(C328)","v":"04-0P9304"},"HIGHWAY SPECIALTY COMPANY",1,{"$f":"FETCHCOMMENT(F328)","v":"02-2J2204"},"SECURITY PAVING COMPANY, INC.",3,{"$f":"FETCHCOMMENT(I328)","v":"12-0R57U4\n06-0W79U4\n07-346504"}]
["C. A. RASMUSSEN, INC.",null,2,{"$f":"FETCHCOMMENT(C329)","v":"07-351704\n07-369704"},"INTERSTATE CIVIL CONSTRUCTION",3,{"$f":"FETCHCOMMENT(F329)","v":"08-1M7404\n08-1M0404\n08-1J3104"},"SOUZA ENGINEERING CONTRACTING",1,{"$f":"FETCHCOMMENT(I329)","v":"05-1N3404"}]
["CALPORTLAND CONSTRUCTION",null,2,{"$f":"FETCHCOMMENT(C330)","v":"05-1J7804\n05-1K4504"},"JFL ELECTRIC, INC.",1,{"$f":"FETCHCOMMENT(F330)","v":"07-350324"},"ST. FRANCIS ELECTRIC, LLC.",1,{"$f":"FETCHCOMMENT(I330)","v":"04-0P7604"}]
["CENTRAL COAST FINANCIAL GROUP, INC. DBA CCFG CONSTRUCTION",null,1,{"$f":"FETCHCOMMENT(C331)","v":"05-1K5104"},"MARTIN BROTHERS CONSTRUCTION",1,{"$f":"FETCHCOMMENT(F331)","v":"03-1H1404"},"STUDEBAKER ELECTRIC INC",1,{"$f":"FETCHCOMMENT(I331)","v":"03-2J5904\n"}]
["CERTIFIED COATINGS COMPANY",null,1,{"$f":"FETCHCOMMENT(C332)","v":"07-354704\n"},"MCCUEN CONSTRUCTION INC",1,{"$f":"FETCHCOMMENT(F332)","v":"02-0K6404"},"SULLY-MILLER CONTRACTING COMPANY",4,{"$f":"FETCHCOMMENT(I332)","v":"07-333604\n08-1J3004\n08-1J2704\n08-1J7204"}]
["CHUMO CONSTRUCTION, INC.",null,3,{"$f":"FETCHCOMMENT(C333)","v":"12-0S1404\n07-346304\n12-0U9104"},"MERCER-FRASER COMPANY",4,{"$f":"FETCHCOMMENT(F333)","v":"03-0J01U4\n01-0J8904\n01-0J2104\n03-0J5604"},"TENNYSON ELECTRIC LLC",1,{"$f":"FETCHCOMMENT(I333)","v":"04-3Q8504"}]
["COLUMBIA ELECTRIC, INC.",null,1,{"$f":"FETCHCOMMENT(C334)","v":"04-1Q2004"},"MIKE BROWN ELECTRIC CO.",1,{"$f":"FETCHCOMMENT(F334)","v":"04-0K1004"},"TORO ENTERPRISES INC",2,{"$f":"FETCHCOMMENT(I334)","v":"07-332304\n07-346804"}]
["CROSSTOWN ELECTRICAL & DATA, INC.",null,3,{"$f":"FETCHCOMMENT(C335)","v":"07-350314\n07-350334\n04-1W0904"},"MOUNTAIN CASCADE, INC.",1,{"$f":"FETCHCOMMENT(F335)","v":"10-1K8404"},"TSI ENGINEERING INC",1,{"$f":"FETCHCOMMENT(I335)","v":"08-1J3304"}]
["DIG IT CONSTRUCTION, INC.",null,1,{"$f":"FETCHCOMMENT(C336)","v":"02-3H6904"},"MYERS & SONS CONSTRUCTION INC",1,{"$f":"FETCHCOMMENT(F336)","v":"04-0P9204"},"TULLIS INC",1,{"$f":"FETCHCOMMENT(I336)","v":"02-0J8504"}]
["FBD VANGUARD CONSTRUCTION, INC.",null,2,{"$f":"FETCHCOMMENT(C337)","v":"08-1J6104\n10-1N9004"},"O.C. JONES & SONS, INC.",6,{"$f":"FETCHCOMMENT(F337)","v":"03-4H8704\n04-0K6404\n04-3J2604\n10-1L2804\n04-4G7804\n04-0Q1304"},"WAHLUND CONSTRUCTION, INC.",1,{"$f":"FETCHCOMMENT(I337)","v":"01-0H6504"}]
["FLATIRON WEST INC",null,1,{"$f":"FETCHCOMMENT(C338)","v":"08-1J5404"},"ORTIZ ENTERPRISES INC",1,{"$f":"FETCHCOMMENT(F338)","v":"12-0K8704"},"WYLATTI RESOURCE MANAGEMENT, INC.",1,{"$f":"FETCHCOMMENT(I338)","v":"01-0H6404"}]
["G R SUNDBERG, INC.",null,2,{"$f":"FETCHCOMMENT(C339)","v":"01-0K4104\n01-0K9404"},"PACIFIC INFRASTRUCTURE CONSTRUCTION, LLC",2,{"$f":"FETCHCOMMENT(F339)","v":"03-3H8304\n03-3J9004"},"YAKAR",2,{"$f":"FETCHCOMMENT(I339)","v":"07-358404\n07-348504"}]
["GENUINE ENGINEERING, INC.",null,1,{"$f":"FETCHCOMMENT(C340)","v":"07-4V5404"},"PAPICH CONSTRUCTION COMPANY INC",5,{"$f":"FETCHCOMMENT(F340)","v":"05-1Q03U4\n09-374704\n05-1J8604\n06-0Y1704\n09-366804"},null,null,{"$f":"FETCHCOMMENT(I340)","v":""}]
["GEORGE REED, INC.",null,2,{"$f":"FETCHCOMMENT(C341)","v":"10-1J8204\n10-1H7004"},"PETERSON-CHASE GENERAL ENGINEERING CONSTRUCTION, INC.",1,{"$f":"FETCHCOMMENT(F341)","v":"12-0R3134"},null,null,{"$f":"FETCHCOMMENT(I341)","v":""}]
[]
["To see names of prime contractors/contract numbers, place your cursor on comment tab (red triangle)."]
["Caltrans DBE Reports: http://www.dot.ca.gov/hq/bep/reports.htm"]